{"text_format":"1","workbook":"xlsx","n_sheets":5,"sheets":["Quiz","Musée","Diapo","Mouvements","Data"],"not_rendered":{"charts":0,"images":131,"macros":1,"external_links":0,"defined_names":7,"comments":1,"pivot_tables":0},"unopened":[],"bounds":{"document_bytes":16777216,"sheet_cells":100000,"rows_first":2000,"rows_last":500,"rows_between":2000,"halvings":0,"cell_chars":16384,"cell_head_chars":4096},"cells_cut":0,"cells_raw":0,"read":"whole","date_system":"1900"}

{"sheet":"Quiz","index":0,"n_rows":120,"n_cols":60,"rows_kept":120,"cut":false,"hidden":false,"merged":[[1,0,2,0],[113,2,113,3],[110,4,110,8],[111,4,111,8],[112,4,112,8],[113,4,113,8],[93,4,93,8],[94,4,94,8],[110,2,110,3],[111,2,111,3],[112,2,112,3],[105,4,105,8],[106,4,106,8],[107,4,107,8],[108,4,108,8],[109,4,109,8],[98,4,98,8],[99,4,99,8],[88,2,88,3],[89,2,89,3],[90,2,90,3],[91,2,91,3],[92,2,92,3],[93,2,93,3],[94,2,94,3],[95,2,95,3],[88,4,88,8],[89,4,89,8],[90,4,90,8],[91,4,91,8],[92,4,92,8],[96,2,96,3],[83,4,83,8],[84,4,84,8],[85,4,85,8],[86,4,86,8],[87,4,87,8],[100,4,100,8],[101,4,101,8],[102,4,102,8],[103,4,103,8],[104,4,104,8],[17,26,19,26],[1,24,1,25],[79,26,104,26],[10,3,10,5],[3,2,3,6],[7,3,7,5],[9,3,9,5],[1,1,1,7],[4,6,6,6],[8,3,8,5],[13,1,13,2],[98,2,98,3],[99,2,99,3],[95,4,95,8],[96,4,96,8],[97,4,97,8],[80,2,80,3],[79,2,79,3],[79,4,79,8],[81,2,81,3],[82,2,82,3],[80,4,80,8],[81,4,81,8],[82,4,82,8],[109,2,109,3],[83,2,83,3],[84,2,84,3],[85,2,85,3],[86,2,86,3],[87,2,87,3],[103,2,103,3],[105,2,105,3],[106,2,106,3],[107,2,107,3],[108,2,108,3],[12,6,12,7],[117,2,117,3],[118,2,118,3],[114,4,114,8],[115,4,115,8],[116,4,116,8],[117,4,117,8],[118,4,118,8],[97,2,97,3],[114,2,114,3],[115,2,115,3],[116,2,116,3],[104,2,104,3],[100,2,100,3],[101,2,101,3],[102,2,102,3]]}
[]
[100,{"$f":"IF(AF4<1,\"\",IF(AO6=2,\"À quel mouvement appartient cette œuvre ?\",\"Connaissez-vous l'auteur de cette œuvre ?\"))","v":""},null,null,null,null,null,null,null,null,null,null,null,null,null,null,null,null,null,null,null,null,null,null,null,null,{"$f":"IF(AF4=0,\"\",\"Dimensions de la peinture : \"&AL6&\" cm.\")","v":"Dimensions de la peinture : 0 x 0 cm."},"AB","AC","AD","AE","AF","AG"]
[null,null,null,null,null,null,null,null,null,null,null,null,null,null,null,null,null,null,null,null,null,null,null,null,null,null,"                 1 mètre                                2 mètres                                          ",0,1]
[null,null,null,null,null,null,null,null,null,null,null,null,null,null,null,null,null,null,null,null,null,null,null,null,null,null,null,null,null,null,"nbques pour test",-1,null,null,null,null,null,"Hauteur","Largeur",null,null,null,null,null,4]
[null,null,null,null,null,null,{"$f":"IF(OR(AO6=1,AO6=3),IF(AF6=0,AF10,IF(AF8=\"Non\",\"D\",\"C\")),IF(AO5=0,AF10,IF(AO9=\"Non\",\"D\",\"C\")))","v":""},null,null,null,null,null,null,null,null,null,null,null,null,null,null,null,null,null,null,null,{"$f":"IF($AF$4>1,\"\",\"1. Cliquer sur 'Nouvelle série' pour débuter un QUIZ. Choisir Peintres ou Mouvements\")","v":"1. Cliquer sur 'Nouvelle série' pour débuter un QUIZ. Choisir Peintres ou Mouvements"},null,null,"Nombre tiré pour image du musée",null,45,"AF5 -de 1 à 40                                Boutons séries :",1,"Série :",1,"Case à cocher liste",{"$f":"VLOOKUP($AF$5,chrono,$AJ$8)","v":0},{"$f":"VLOOKUP($AF$5,chrono,$AJ$8+1)","v":0},"Renvoi du menu",0,"Texte pour réponse :",{"$f":"IF(OR(AO6=1,AO6=3),VLOOKUP(AF5,chrono,AJ7),VLOOKUP(AF5,chrono,2))","v":0},null,5]
[null,null,null,null,null,null,null,null,null,null,null,null,null,null,null,null,null,null,null,null,null,null,null,null,null,null,{"$f":"IF($AF$4>1,\"\",\"2. Cliquer sur Tirage (Ctrl + q)  ou  clic sur une peinture pour afficher une nouvelle oeuvre.\")","v":"2. Cliquer sur Tirage (Ctrl + q)  ou  clic sur une peinture pour afficher une nouvelle oeuvre."},null,null,"Nombre renvoyé par le menu déroulant",null,0,"AF6  Renvoie 2 pour 1 de la liste",null,"déc image",{"$f":"IF(AJ5=1,0,IF(AJ5=2,7,14))","v":0},null,{"$f":"AL5&\" x \"&AM5","v":"0 x 0"},{"$f":"IF(OR(AL5>100,AM5>100),1,0)","v":0},"Bouton Peintre ou Style",3,"menu déroulant bis",{"$f":"IF(OR(AO6=1,AO6=3),AF5,AO7)","v":45},null,6]
[null,null,null,null,null,null,null,null,null,null,null,null,null,null,null,null,null,null,null,null,null,null,null,null,null,null,{"$f":"IF($AF$4>1,\"\",\"3. Choisir le peintre ou le mouvement dans le menu déroulant.\")","v":"3. Choisir le peintre ou le mouvement dans le menu déroulant."},null,null,"Correspondance menu",null,{"$f":"IF(AF6=0,0,VLOOKUP(AF6-1,Alpha,2))","v":0},"AF7",null,"déc. Tab",{"$f":"IF(AJ5=1,3,IF(AJ5=2,6,9))","v":3},"Menu en 2 parties",null,{"$f":"IF(AM5/1.2>AL5,\"L\",\"H\")","v":"H"},"La bonne réponse a est  : ",{"$f":"VLOOKUP($AF$5,chrono,14)","v":"Partie manuelle"},"La bonne réponse b est :",{"$f":"VLOOKUP($AF$5,chrono,15)","v":0},null,7,null,null,null,null,null,null,null,null,null,null,null,null,null,null," "]
[null,null,null,{"$f":"IFERROR(IF(AQ6=0,\"\",IF(AQ9=\"OK\",AQ5,\"\")),\" \" )","v":""},null,null,null,null,null,null,null,null,null,null,null,null,null,null,null,null,null,null,null,null,null,null,{"$f":"IF($AF$4>1,\"\",\"    Le pouce vert en haut indique que le choix est JUSTE.\")","v":"    Le pouce vert en haut indique que le choix est JUSTE."},null,null,"Juste ou faux",null,{"$f":"IF(AO6=3,AF12,AF11)","v":"Non"},"AF8",null,"dec dim",{"$f":"IF(AJ5=1,16,IF(AJ5=2,18,20))","v":16},null,{"$f":"IF(AF5=45,1,IF(AF4=0,0,1))","v":1},"G","Nb points max.",{"$f":"IF(G14>AF4-1,(AF4-1)*1.5,AF4-1)","v":-3},"Masque, vrai-faux",false,null,8]
[null,null,null,{"$f":"IF(AF5=41,\"Réponse avec le menu ci-dessus\",IF(AF4>AJ9,\"La série est terminée !\",\"\"))","v":""},null,null,null,{"$f":"IF(AF9=FALSE,\"\",VLOOKUP(AF5,chrono,IF(AO6=1,22,27)))","v":""},null,null,null,null,null,null,null,null,null,null,null,null,null,null,null,null,null,null,null,null,"musée","Indice",null,null,"AF9","indice","nb ques :",40,"Tirage sans réponse :",null,null,"Juste au faux",{"$f":"IF(OR(AO5-1=AO7,  AO5-1=AQ7),\"OK\",\"non\")","v":"non"},"couleur de la main",{"$f":"IF(OR(AO6=1,AO6=3),AF8,AO9)","v":"Non"},null,9]
[null,null,null,{"$f":"IF(AF7=0,\"\",IF(AF8=\"OK\",VLOOKUP(AF5,chrono,AJ7+1),\"\"))","v":""},null,null,null,null,null,null,null,null,null,null,null,null,null,null,null,null,null,null,null,null,null,null,{"$f":"IF($AF$4>1,\"\",\"L'indice donne une fourchette pour la première lettre du nom du peintre\")","v":"L'indice donne une fourchette pour la première lettre du nom du peintre"},null,null,null,"Souris :",{"$f":"IF(AF5>40,\"\",IF(AF6=0,8,\"\"))","v":""}]
[null,null,null,{"$f":"IF(AF7=0,\"\",IF(AF8=\"OK\",VLOOKUP(AF5,chrono,12),\"\"))","v":""},null,null,null,null,null,null,null,null,null,null,null,null,null,null,null,null,null,null,null,null,null,null,{"$f":"IF($AF$4>1,\"\",\"ou du mouvement, mais ça vous coûtera un demi-point !\")","v":"ou du mouvement, mais ça vous coûtera un demi-point !"},null,null,"Juste ou faux Peintres",null,{"$f":"(IF($AF$7<>$AF$5,\"Non\",\"OK\"))","v":"Non"}]
[null,null,null,null,null,null,null,null,null,null,null,null,null,null,null,null,null,null,null,null,null,null,null,null,null,null,null,null,null,"Juste ou faux QCM",null,{"$f":"(IF(AN30=0,\"Non\",\"OK\"))","v":"Non"}]
[null,null,null,null,null,null,"Résultat final",null,null,null,null,null,null,null,null,null,null,null,null,null,null,null,null,null,null,null,{"$f":"IF($AF$4>1,\"\",\"Après le 'Tirage', le système attend une réponse. Si vous souhaitez passer les oeuvres\")","v":"Après le 'Tirage', le système attend une réponse. Si vous souhaitez passer les oeuvres"}]
[null,{"$f":"IF(AF4>AJ9,AJ9&\" / \"&AJ9&\"           \",AF4&\"/ \"&AJ9&\"           \")","v":"-1/ 40           "},null,null,null,null,0,{"$f":"IF(G14>1,\"points / \"&AO8,\"point\")","v":"point"},"t",null,null,null,null,null,null,null,null,null,null,null,null,null,null,null,null,null,{"$f":"IF($AF$4>1,\"\",\"sans avoir à  choisir avec le menu, cochez la case 'Réponse orale'.\")","v":"sans avoir à  choisir avec le menu, cochez la case 'Réponse orale'."}]
[null,null,null,null,null,null,"(Ctl + q)"]
[null,null,null,null,null,null,null,null,null,null,null,null,null,null,null,null,null,null,null,null,null,null,null,null,null,null,{"$f":"IF($AF$4>1,\"\",\"Pendant ou à la fin d'une série la liste des tirages peut-être éditée avec la case\")","v":"Pendant ou à la fin d'une série la liste des tirages peut-être éditée avec la case"}]
[null,null,null,null,null,null,null,null,null,null,null,null,null,null,null,null,null,null,null,null,null,null,null,null,null,null,{"$f":"IF($AF$4>1,\"\",\"'Liste de la série en cours'. Les erreurs y sont signalées et les peintures revues une à une.\")","v":"'Liste de la série en cours'. Les erreurs y sont signalées et les peintures revues une à une."}]
[null,null,null,null,null,null,null,null,null,null,null,null,null,null,null,null,null,null,null,null,null,null,null,null,null,null,{"$f":"IF($AF$4>2,\"\",\"Si vous répondez à  Peintres et à  Mouvements dans le même tirage, cliquez sur la case 'Solution masquée' pour cacher les réponses !\")","v":"Si vous répondez à  Peintres et à  Mouvements dans le même tirage, cliquez sur la case 'Solution masquée' pour cacher les réponses !"}]
[]
[]
[]
[null,null,null,null,null,null,null,null,null,null,null,null,null,null,null,null,null,null,null,null,null,null,null,null,null,null,{"$f":"IF($AF$4>1,\"\",\"-> Pour rafraîchir votre culture, regardez la feuille des miniatures 'Musée' ou la feuille 'Diapo'.\" )","v":"-> Pour rafraîchir votre culture, regardez la feuille des miniatures 'Musée' ou la feuille 'Diapo'."},null,null,null,null,null,null,"Quiz ABCD"]
[null,null,null,null,null,null,null,null,null,null,null,null,null,null,null,null,null,null,null,null,null,null,null,null,null,null,{"$f":"IF($AF$4>1,\"\",\"    Trois œuvres célèbres de 40 peintres de 1475 à 2010 attendent votre visite.\")","v":"    Trois œuvres célèbres de 40 peintres de 1475 à 2010 attendent votre visite."},null,null,null,null,null,null,34,35,36,37,38,39,40,41]
[null,null,null,null,null,null,null,null,null,null,null,null,null,null,null,null,null,null,null,null,null,null,null,null,null,null,{"$f":"IF($AF$4>1,\"\",\"-> La feuille 'Mouvements' donne les clés de l'histoire de l'art.\")","v":"-> La feuille 'Mouvements' donne les clés de l'histoire de l'art."},null,null,null,null,null,null,"G","H","I","J/10","K","L","M"]
[null,null,null,null,null,null,null,null,null,null,null,null,null,null,null,null,null,null,null,null,null,null,null,null,null,null,null,null,null,null,null,null,null,25,"Tirage abcd",1,19,null,null,null,null,{"$f":"IF(AO25=\"\",\"\",AO25&\" - \")","v":""}]
[null,null,null,null,null,null,null,null,null,null,null,null,null,null,null,null,null,null,null,null,null,null,null,null,null,null,null,null,null,null,null,null,null,26,null,2,40,null,null,null,null,""]
[null,null,null,null,null,null,null,null,null,null,null,null,null,null,null,null,null,null,null,null,null,null,null,null,null,null,null,null,null,null,null,null,null,27,null,3,29,null,null,null,null,""]
[null,null,null,null,null,null,null,null,null,null,null,null,null,null,null,null,null,null,null,null,null,null,null,null,null,null,null,null,null,null,null,null,null,28,null,4,31,null,"rep ABCD",{"$f":"AF6","v":0},null,""]
["© Y. Péguiron - version 03.05.2020",null,null,null,null,null,null,null,null,null,null,null,null,null,null,null,null,null,null,null,null,null,null,null,null,null,null,null,null,null,null,null,null,29,null,5,0,null,"v ABCD",{"$f":"MATCH(5,AN31:AN35,0)","v":5},null,""]
[null,null,null,null,null,null,null,null,null,null,null,null,null,null,null,null,null,null,null,null,null,null,null,null,null,null,null,null,null,null,null,null,null,30,null,"rang",null,null,"Juste =1",{"$f":"IF(AN28=AN29,1,0)","v":0},null,""]
[null,null,null,null,null,null,null,null,null,null,null,null,null,null,null,null,null,null,null,null,null,null,null,null,null,null,null,null,null,null,null,null,null,31,"A",{"$f":"RANK(AK25,$AK$25:$AK$29)","v":4},{"$f":"VLOOKUP(AJ31,$AJ$25:$AK$29,2)","v":31},1,{"$f":"\"A - \"&VLOOKUP(AK31,Data!$A$3:$B$42,2)","v":"A - Pablo Picasso"},{"$f":"AJ31","v":4},null,""]
[null,null,null,null,null,null,null,null,null,null,null,null,null,null,null,null,null,null,null,null,null,null,null,null,null,null,null,null,null,null,null,null,null,32,"B",{"$f":"RANK(AK26,$AK$25:$AK$29)","v":1},{"$f":"VLOOKUP(AJ32,$AJ$25:$AK$29,2)","v":19},2,{"$f":"\"B - \"&VLOOKUP(AK32,Data!$A$3:$B$42,2)","v":"B - Alfred Sisley"},{"$f":"AJ32","v":1},null,""]
[null,null,null,null,null,null,null,null,null,null,null,null,null,null,null,null,null,null,null,null,null,null,null,null,null,null,null,null,null,null,null,null,null,33,"C",3,29,3,{"$f":"\"C - \"&VLOOKUP(AK33,Data!$A$3:$B$42,2)","v":"C - Georges Braque"},3,null,""]
[null,null,null,null,null,null,null,null,null,null,null,null,null,null,null,null,null,null,null,null,null,null,null,null,null,null,null,null,null,null,null,null,null,34,"D",2,40,4,{"$f":"\"D - \"&VLOOKUP(AK34,Data!$A$3:$B$42,2)","v":"D - Pierre Soulages"},2,null,""]
[null,null,null,null,null,null,null,null,null,null,null,null,null,null,null,null,null,null,null,null,null,null,null,null,null,null,null,null,null,null,null,null,null,35,"E",5,0,5,{"$f":"\"E - \"&VLOOKUP(AK35,Data!$A$3:$B$42,2)","v":{"$error":"#N/A"}},5,null,""]
[null,null,null,null,null,null,null,null,null,null,null,null,null,null,null,null,null,null,null,null,null,null,null,null,null,null,null,null,null,null,null,null,null,null,null,null,null,"lettre juste",{"$f":"VLOOKUP(AN29+30,AH31:AI35,2)","v":"E"},null,null,""]
[]
[]
[]
[]
[]
[]
[]
[]
[]
[]
[]
[]
[]
[]
[]
[]
[]
[]
[]
[]
[]
[]
[]
[]
[]
[]
[]
[]
[]
[]
[]
[]
[]
[]
[]
[]
[]
[]
[]
[null,null,null,null,null,null,null,null,null,null,null,null,null,"H","L"]
[null,null,null,null,null,null,null,null,null,null,null,null,{"$f":"N77&\"x\"&O77","v":"1x1"},{"$f":"IF(N79=0,1,VLOOKUP(M79,$B$80:$O$120,13))","v":1},{"$f":"IF(N79=0,1,VLOOKUP(M79,$B$80:$O$119,14))","v":1}]
[null,null,null,null,null,null,null,null,null,null,null,"?","déroul","image","décal"]
[null,"Liste des tirages de la dernière série :",null,null,null,null,null,null,null,"serie","decal","musee",1,{"$f":"VLOOKUP(M79,$B$80:$M$120,12)","v":0},{"$f":"VLOOKUP(M79,B80:L120,11)","v":14},"x","decdim","Lettres","Lettres"]
[0,1,{"$f":"IF(A80=0,\"\",T80&VLOOKUP(A80,chrono,2))","v":""},null,{"$f":"IF(A80=0,\"\",VLOOKUP(A80,chrono,IF($AO$6=1,K80,12))&\"   -  \"&VLOOKUP(A80,chrono,K80+1))","v":""},null,null,null,null,0,{"$f":"IF(J80=1,3,IF(J80=2,6,9))","v":9},{"$f":"IF(J80=1,0,IF(J80=2,7,14))","v":14},{"$f":"A80","v":0},{"$f":"VLOOKUP(A80,chrono,Q80)","v":1},{"$f":"VLOOKUP(A80,chrono,Q80+1)","v":1},"x",{"$f":"IF(J80=1,16,IF(J80=2,18,20))","v":20},null,null,{"$f":"IF(S80=\"\",\"\",S80&\" - \")","v":""}]
[0,2,"",null,"",null,null,null,null,0,{"$f":"IF(J81=1,3,IF(J81=2,6,9))","v":9},{"$f":"IF(J81=1,0,IF(J81=2,7,14))","v":14},{"$f":"A81","v":0},1,1,"x",{"$f":"IF(J81=1,16,IF(J81=2,18,20))","v":20},null,null,{"$f":"IF(S81=\"\",\"\",S81&\" - \")","v":""}]
[0,3,"",null,"",null,null,null,null,0,9,14,0,1,1,"x",20,null,null,""]
[0,4,"",null,"",null,null,null,null,0,9,14,0,1,1,"x",20,null,null,""]
[0,5,"",null,"",null,null,null,null,0,9,14,0,1,1,"x",20,null,null,""]
[0,6,"",null,"",null,null,null,null,0,9,14,0,1,1,"x",20,null,null,""]
[0,7,"",null,"",null,null,null,null,0,9,14,0,1,1,"x",20,null,null,""]
[0,8,"",null,"",null,null,null,null,0,9,14,0,1,1,"x",20,null,null,""]
[0,9,"",null,"",null,null,null,null,0,9,14,0,1,1,"x",20,null,null,""]
[0,10,"",null,"",null,null,null,null,0,9,14,0,1,1,"x",20,null,null,""]
[0,11,"",null,"",null,null,null,null,0,9,14,0,1,1,"x",20,null,null,""]
[0,12,"",null,"",null,null,null,null,0,9,14,0,1,1,"x",20,null,null,""]
[0,13,"",null,"",null,null,null,null,0,9,14,0,1,1,"x",20,null,null,""]
[0,14,"",null,"",null,null,null,null,0,9,14,0,1,1,"x",20,null,null,""]
[0,15,"",null,"",null,null,null,null,0,9,14,0,1,1,"x",20,null,null,""]
[0,16,"",null,"",null,null,null,null,0,9,14,0,1,1,"x",20,null,null,""]
[0,17,"",null,"",null,null,null,null,0,9,14,0,1,1,"x",20,null,null,""]
[0,18,"",null,"",null,null,null,null,0,9,14,0,1,1,"x",20,null,null,""]
[0,19,"",null,"",null,null,null,null,0,9,14,0,1,1,"x",20,null,null,""]
[0,20,"",null,"",null,null,null,null,0,9,14,0,1,1,"x",20,null,null,""]
[0,21,"",null,"",null,null,null,null,0,9,14,0,1,1,"x",20,null,null,""]
[0,22,"",null,"",null,null,null,null,0,9,14,0,1,1,"x",20,null,null,""]
[0,23,"",null,"",null,null,null,null,0,9,14,0,1,1,"x",20,null,null,""]
[0,24,"",null,"",null,null,null,null,0,9,14,0,1,1,"x",20,null,null,""]
[0,25,"",null,"",null,null,null,null,0,9,14,0,1,1,"x",20,null,null,""]
[0,26,"",null,"",null,null,null,null,0,9,14,0,1,1,"x",20,null,null,""]
[0,27,"",null,"",null,null,null,null,0,9,14,0,1,1,"x",20,null,null,"",null,null,null,null,null,null,{"$f":"IF(N79=0,\"\",VLOOKUP(N79,chrono,2))","v":""}]
[0,28,"",null,"",null,null,null,null,0,9,14,0,1,1,"x",20,null,null,"",null,null,null,null,null,null,{"$f":"IF(N79=0,\"\",VLOOKUP(N79,chrono,12))","v":""}]
[0,29,"",null,"",null,null,null,null,0,9,14,0,1,1,"x",20,null,null,"",null,null,null,null,null,null,"                                                                                                                                                                                                         "]
[0,30,"",null,"",null,null,null,null,0,9,14,0,1,1,"x",20,null,null,""]
[0,31,"",null,"",null,null,null,null,0,9,14,0,1,1,"x",20,null,null,""]
[0,32,"",null,"",null,null,null,null,0,9,14,0,1,1,"x",20,null,null,"",null,null,null,null,null,null,"                        Revoir la peinture no :"]
[0,33,"",null,"",null,null,null,null,0,9,14,0,1,1,"x",20,null,null,""]
[0,34,"",null,"",null,null,null,null,0,9,14,0,1,1,"x",20,null,null,"",null,null,null,null,null,null,"                1 mètre"]
[0,35,"",null,"",null,null,null,null,0,9,14,0,1,1,"x",20,null,null,""]
[0,36,"",null,"",null,null,null,null,0,9,{"$f":"IF(J115=1,0,IF(J115=2,7,14))","v":14},{"$f":"A115","v":0},1,1,"x",20,null,null,"",null,null,null,null,null,null,"<-- Dimension du tableau en cm"]
[0,37,"",null,"",null,null,null,null,0,9,14,0,1,1,"x",20,null,null,""]
[0,38,"",null,"",null,null,null,null,0,9,14,0,1,1,"x",20,null,null,""]
[0,39,"",null,"",null,null,null,null,0,9,14,0,1,1,"x",20,null,null,""]
[0,40,"",null,"",null,null,null,null,0,9,{"$f":"IF(J119=1,0,IF(J119=2,7,14))","v":14},{"$f":"A119","v":0},1,1,"x",20,null,null,""]
[null,41,null,null,null,null,null,null,null,null,null,null,null,{"$f":"VLOOKUP(A120,chrono,K120+11)","v":"   "},{"$f":"VLOOKUP(A120,chrono,K120+12)","v":"    "},"x"]

{"sheet":"Musée","index":1,"n_rows":198,"n_cols":47,"rows_kept":198,"cut":false,"hidden":false,"merged":[[2,0,5,0],[9,0,12,0],[16,0,19,0]]}
[null,1,2,3,4,5,6,7,8,9,10,11,12,13,14,15,16,17,18,19,20,22,null,23,24,25,26,27,28,29,30,31,32,33,34,35,36,37,38,39,40]
[null,null,null,null,null,null,null,null,null,null,null,null,null,null,null,null,null,null,null,null,null,null,null,null,null,null,null,null,null,null,null,null,null,null,null,null,null,null,null,null,null,"                      ","Bravo !",null,null,"                                                                                                                                                                                                                                                           ","OK !   Nouvelle série en préparation…                  Voir infos ci-contre --->"]
["A","Sandro Botticelli","Leonard_de Vinci"," Michel-Ange ","Sanzio Raphaël","Paul Véronèse"," Rembrandt ","Diego Vélasquez","Johannes Vermeer","Jean-Honoré Fragonard","Joshua Reynolds","Eugène Delacroix","Joseph Turner","Gustave Courbet","Paul Gauguin","Edouard Manet","Claude Monet","Edgar Degas","Auguste Renoir","Alfred Sisley","Paul Cézanne","Albert Anker","Georges Seurat","Henri Toulouse-Lautrec","Alphonse Mucha","Ferdinand Hodler","Vincent Van Gogh","Amedeo Modigliani","Henri Matisse","Georges Braque","Robert Delaunay","Pablo Picasso","Louis Toffoli","Paul Klee","Joan Miro","Salvador Dali","Marc Chagall","René Magritte","Leonor Fini","Bernard Buffet","Pierre Soulages"]
[null,1475,1475,1508,1504,1563,1626,1629,1660,1767,1781,1824,1839,1853,1881,1862,1867,1865,1869,1870,1873,1865,1886,1888,1897,1910,1888,1915,1905,1909,1911,1937,1964,1927,1925,1931,1911,1920,1971,1959,1985]
[null,"L'adoration des Mages","Le Baptême du Christ","Le Prophète Jérémiah","Les Trois Graces","Les Noces de Cana","La Partie de Musique","Le Festin de Bacchus","Le verre de vin","Hasard heureux de l'Escarpolette","The Ladies Waldegrave","Le Massacre de Scio","Dernier Voyage du Téméraire","Les Baigneuses","Etude de nu ou Suzanne","La Musique aux Tuilleries","Femmes au Jardin","Femme avec Chrysanthèmes","La Grenouillère","Vue du Canal St Martin","La Maison du Dr Gachet","La Leçon d'Ecriture","Entrée du Port de Honfleur","Le Cirque de Fernando le Cavalier","Daydream","Le Bûcheron","Le Semeur au Soleil couchant","La Mariée et son Mari","Fenêtre ouverte à Collioure","Le Verre sur la Table","La Tour Effel","Femme au Beret rouge","Le Bivouac","Voiliers élégants","Ballerine","Les Montres Molles","Moi et le Village","Chat dans un Chapeau","Les Mutantes","Le Grand Canal de Venise","Polyptyque C"]
[null,"Galerie des Offices - Florence","Galerie des Offices - Florence","Chapelle Sixtine - Vatican","Musée Condé à Chantilly","Musée du Louvre","Rijksmuseum - Amsterdam","Musée du Prado - Madrid","Gemäldegalerie - Berlin ","Wallace Collection, Londres","Scottish National Gallery - Edinburgh","Musée du Louvre","National Gallery - Londres","Musée Fabre - Montpellier","Collection Ny Carlsberg - Copenhague","National Gallery - Londres","Musée d'Orsay","Metropolitan Museum of Art - New-York","Nationalmuseum - Stockholm","Musée d'Orsay","Musée d'Orsay","Collection privée Suisse","Barnes Fondation - Philadelphia","Art Insitute - Chicago","Collection privée","Collection d’art de la Mobilière","Collection Emil Buehrle - Zurich","Museum of Modern Art - New York","Musée du Luxembourg","Collection privée","Musée d'art moderne de la ville de Paris","Collection privée","Collection privée","Zentrum Paul Klee - Berne","Collection privée","Museum of Modern Art - New York","Museum of Modern Art - New York","Collection privée","Collection privée - Belgique","Sérigraphie sur tapisserie 200 tirages","Musée Soulages - Rodez"]
[]
[]
[null,null,null,null,null,null,null,null,null,null,null,null,null,null,null,null,null,null,null,null,null,null,null,null,null,null,null,null,null,null,null,null,null,null,null,null,null,null,null,null,null,null,"Bravo !"]
["B",{"$f":"B3","v":"Sandro Botticelli"},"Leonard_de Vinci"," Michel-Ange ","Sanzio Raphaël","Paul Véronèse"," Rembrandt ","Diego Vélasquez","Johannes Vermeer","Jean-Honoré Fragonard","Joshua Reynolds","Eugène Delacroix","Joseph Turner","Gustave Courbet","Paul Gauguin","Edouard Manet","Claude Monet","Edgar Degas","Auguste Renoir","Alfred Sisley","Paul Cézanne","Albert Anker","Georges Seurat","Henri Toulouse-Lautrec","Alphonse Mucha","Ferdinand Hodler","Vincent Van Gogh","Amedeo Modigliani","Henri Matisse","Georges Braque","Robert Delaunay","Pablo Picasso","Louis Toffoli","Paul Klee","Joan Miro","Salvador Dali","Marc Chagall","René Magritte","Leonor Fini","Bernard Buffet","Pierre Soulages"]
[null,1482,1480,1509,1511,1570,1632,1634,1666,1775,1787,1830,1840,1865,1888,1879,1873,1870,1874,1876,1894,1886,1888,1890,1897,1912,1889,1915,1909,1909,1912,1954,1964,1928,1938,1943,1957,1936,1974,1978,1990]
[null,"L'Allégorie de Printemps","La Madonne à l'œillet","Les Sybilles de Delphe","Le Triomphe de Galatée","Mars et Venus","La Leçon d'Anatomie","Comte-Duc d'Olivares","L'Atelier du Peintre","Les Baigneuses","Lady Smith and Children","La Liberté guidant le Peuple","Le Négrier","La Source","Les Misérables","Chez le Père Lathuille","Le Déjeuner","Orchestre à la Maison de l'Opera","Le Pêcheur à la Ligne","L'Inondation à Port-Marty","La Maison au Murs fendus","Les Petits Eplucheurs","Rive de la Seine","Bal au Moulin Rouge","Biscuits Lefevre","Le Grand Muveran","Nuit étoilée","Madame Pompadour","La Danse","Petit Port en Normandie","Les trois Graces","Jacqueline","Les Mariachis","Château et Soleil","Oiseaux et Insectes","Geopoliticus","Le Concert","La Clef des Champs","Le Sphinx ailé","Clown à la Cravate à pois","Noir et Bleu - 3 février"]
[null,"Galerie des Offices - Florence","Alte Pinakothek de Munich,","Chapelle Sixtine - Vatican"," Villa Farnesina - Rome","Metropolitan Museum of Art - New-York","Mauritshuis - La Haye ","Collection José Luis Varez-Fisa -  Madrid","Kunsthistorisches Museum - Vienne","Musée du Louvre","Metropolitan Museum of Art - New-York","Musée du Louvre","Musée des beaux-arts de Boston","Musée d'Orsay","Musée Van Gogh - Amsterdam","Musée des Beaux-arts - Tournai","Musée d'Orsay","Musée d'Orsay","Collection privée","Musée d'Orsay","Collection Haupt - New York","Collection privée Suisse","Royal Museums - Bruxelles","Museum of Art - Philadelphie","Collection privée","Kunstmuseum -  Winterthur","Museum of Modern Art - New York","Art Institute - Chicago","L'Hermitage - St. Petersbourg","Art Insitute - Chicago","Collection privée","Musée Picasso - Barcelone","Collection privée","Collection privée","Albertina Museum - Vienne ","Salvador Dali Museum - Saint Petersburg","Collection privée","Nacional Thyssen-Bornemisza - Madrid","Collection privée - Luxembourg","ArtNet","Musée National d'Art - Luxembourg"]
[]
[]
[null,null,null,null,null,null,null,null,null,null,null,null,null,null,null,null,null,null,null,null,null,null,null,null,null,null,null,null,null,null,null,null,null,null,null,null,null,null,null,null,null,null,"Bravo !"]
["C",{"$f":"B3","v":"Sandro Botticelli"},"Leonard_de Vinci"," Michel-Ange ","Sanzio Raphaël","Paul Véronèse"," Rembrandt ","Diego Vélasquez","Johannes Vermeer","Jean-Honoré Fragonard","Joshua Reynolds","Eugène Delacroix","Joseph Turner","Gustave Courbet","Paul Gauguin","Edouard Manet","Claude Monet","Edgar Degas","Auguste Renoir","Alfred Sisley","Paul Cézanne","Albert Anker","Georges Seurat","Henri Toulouse-Lautrec","Alphonse Mucha","Ferdinand Hodler","Vincent Van Gogh","Amedeo Modigliani","Henri Matisse","Georges Braque","Robert Delaunay","Pablo Picasso","Louis Toffoli","Paul Klee","Joan Miro","Salvador Dali","Marc Chagall","René Magritte","Leonor Fini","Bernard Buffet","Pierre Soulages"]
[null,1485,1490,1512,1520,1572,1654,1657,1668,1785,1788,1840,1842,1872,1891,1882,1899,1873,1880,1877,1895,1894,1889,1898,1898,1912,1890,1918,1946,1910,1957,1955,1970,1932,1949,1946,1962,1966,1975,1980,2010]
[null,"La Naissance de Venus","Dame avec l'Hermine","La Création d'Adam","La Transfiguration","La Bataille de Lépante","La Femme dans le Bain","Les Fileuses","L'Astronome","Fontaine de l'Amour","Age de l'Innocence ","Entrée des Croisés à Constantinople","Tempête de Neige en Mer","Plage de Normandie","Les Parau Parau","Bar aux Folies Bergères ","Nymphéa","La Répétition","Le Déjeuner des Canotiers","Barges à Billancourt","Maison Maria et Château Noir","Le Tailleur du Village","La Tour Eiffel","Au Concert","La Danse","Les Dents du Midi","Route avec Cyprès et Ciel","Nu debout, Elvira","Le Lanceur de Couteaux","Violon et Bougie","La fenêtre no 2","Les Femmes d'Alger","La Brodeuse","Ad Parnassum - (La Lune)","Femme et oiseau  au clair de lune","La Tentation de St-Antoine","La Baie des Anges","L'Heureux Donateur","L'élève - Montmartre secret","Roses et Orchidées "," \"18 mars\""]
[null,"Galerie des Offices - Florence","Musée National de Cracovie","Chapelle Sixtine - Vatican","Musée du Vatican","Gallerie dell'Accademia de Venise","National Gallery - Londres","Musée du Prado - Madrid","Musée du Louvre","Paul Getty Museum - Los Angeles","Tate Britain - Londres","Musée du Louvre","National Gallery - Londres","National Gallery - Londres","L'Hermitage - St. Petersbourg","Courtauld Gallery - Londres","Musée d'Orsay - Paris","Harward Art Museums - Boston","The Phillips Collection - Washington","L'Hermitage - St. Petersbourg","Musée d'art Kimbell - Fort Worth (USA)","Collection privée Suisse","Fine Arts Museums - San Francisco","National Gallery - Washington","Collection privée","Kunstmuseum - Basel","Kröller-Müller Museum - Otterlo (Pays-Bas)","Musee BeauxArts - Berne","Menil Collection - Houston","Musée d'Art moderne - San Francisco","Goldmark Gallery -  Uppingham (UK)","En prêt au Musée du Louvre","Collection privée","Musee BeauxArts - Berne","Collection privée","Musées Royaux des Beaux-Arts de Belgique","Musée National Marc Chagall - Nice","Musée communal des beaux-arts d'Ixelles (B)","Collection privée","Collection privée","Collection privée"]
[null,"Renaissance","Renaissance","Renaissance","Renaissance","Maniérisme","Baroque","Baroque","Baroque","Rococo","Néo-classicisme anglais","Romantisme","Romantisme","Réalisme","Symboliste","Réalisme","Impressionnisme","Impressionnisme","Impressionnisme","Impressionnisme","Postimpressionnisme","Réalisme","Pointillisme","Art nouveau","Art nouveau","Symbolisme","Postimpressionnisme","Fauvisme","Fauvisme","Cubisme","Cubisme","Cubisme","Constructivisme","Constructivisme","Surréalisme","Surréalisme","Expressionnisme","Surréalisme","Surréalisme","Expressionnisme","Art informel"]
[null,"   ","   ","   ","   ","   ","   ","   ","   ","   ","   ","   ","   ","Romantisme","Postimpressionnisme","Impressionnisme","   ","   ","Réalisme","   ","Impressionnisme","Impressionnisme","Postimpressionnisme","Postimpressionnisme","   ","   ","Expressionnisme","Expressionnisme","Postimpressionnisme","Fauvisme","   ","Surréalisme","Postcubisme","Expressionnisme","Fauvisme","Cubisme","Symbolisme ","   ","   ","   ","   ","   "]
[]
[null,1,2,3,4,5,6,7,8,9,10,11,12,13,14,15,16,17,18,19,20,21,22,23,24,25,26,27,28,29,30,31,32,33,34,35,36,37,38,39,40]
[null,"Liste alphabétique","Pour aller au peintre : cliquer sur le no à gauche du peintre, puis sur son nom - Retour  à la liste avec Ctrl+l"]
[21,"Anker","La Leçon d'Ecriture","Les Petits Eplucheurs","Le Tailleur du Village"]
[1,"Botticelli","L'adoration des Mages","L'Allégorie de Printemps","La Naissance de Venus"]
[29,"Braque","Le Verre sur la Table","Petit Port en Normandie","Violon et Bougie"]
[39,"Buffet","Le Grand Canal de Venise","Clown à la Cravate à pois","Roses et Orchidées "]
[20,"Cézanne","La Maison du Dr Gachet","La Maison au Murs fendus","Maison Maria et Château Noir"]
[36,"Chagall","Moi et le Village","Le Concert","La Baie des Anges"]
[13,"Courbet","Les Baigneuses","La Source","Plage de Normandie"]
[35,"Dali","Les Montres Molles","Geopoliticus","La Tentation de St-Antoine"]
[17,"Degas","Femme avec Chrysanthèmes","Orchestre à la Maison de l'Opera","La Répétition"]
[11,"Delacroix","Le Massacre de Scio","La Liberté guidant le Peuple","Entrée des Croisés à Constantinople"]
[30,"Delaunay","La Tour Effel","Les trois Graces","La fenêtre no 2"]
[38,"Fini","Les Mutantes","Le Sphinx ailé","L'élève - Montmartre secret"]
[9,"Fragonard","Hasard heureux de l'Escarpolette","Les Baigneuses","Fontaine de l'Amour"]
[14,"Gauguin","Etude de nu ou Suzanne","Les Misérables","Les Parau Parau"]
[25,"Hodler","Le Bûcheron","Le Grand Muveran","Les Dents du Midi"]
[33,"Klee","Voiliers élégants","Château et Soleil","Ad Parnassum - (La Lune)"]
[37,"Magritte","Chat dans un Chapeau","La Clef des Champs","L'Heureux Donateur"]
[15,"Manet","La Musique aux Tuilleries","Chez le Père Lathuille","Bar aux Folies Bergères "]
[28,"Matisse","Fenêtre ouverte à Collioure","La Danse","Le Lanceur de Couteaux"]
[3,"Michel-Ange","Le Prophète Jérémiah","Les Sybilles de Delphe","La Création d'Adam"]
[34,"Miro","Ballerine","Oiseaux et Insectes","Femme et oiseau  au clair de lune"]
[27,"Modigliani","La Mariée et son Mari","Madame Pompadour","Nu debout, Elvira"]
[16,"Monet","Femmes au Jardin","Le Déjeuner","Nymphéa"]
[24,"Mucha","Daydream","Biscuits Lefevre","La Danse"]
[31,"Picasso","Femme au Beret rouge","Jacqueline","Les Femmes d'Alger"]
[4,"Raphaël","Les Trois Graces","Le Triomphe de Galatée","La Transfiguration"]
[6,"Rembrandt","La Partie de Musique","La Leçon d'Anatomie","La Femme dans le Bain"]
[18,"Renoir","La Grenouillère","Le Pêcheur à la Ligne","Le Déjeuner des Canotiers"]
[10,"Reynolds","The Ladies Waldegrave","Lady Smith and Children","Age de l'Innocence "]
[22,"Seurat","Entrée du Port de Honfleur","Rive de la Seine","La Tour Eiffel"]
[19,"Sisley","Vue du Canal St Martin","L'Inondation à Port-Marty","Barges à Billancourt"]
[40,"Soulages","Polyptyque C","Noir et Bleu - 3 février"," \"18 mars\""]
[32,"Toffoli","Le Bivouac","Les Mariachis","La Brodeuse"]
[23,"Toulouse-Lautrec","Le Cirque de Fernando le Cavalier","Bal au Moulin Rouge","Au Concert"]
[12,"Turner","Dernier Voyage du Téméraire","Le Négrier","Tempête de Neige en Mer"]
[26,"Van Gogh","Le Semeur au Soleil couchant","Nuit étoilée","Route avec Cyprès et Ciel"]
[7,"Vélasquez","Le Festin de Bacchus","Comte-Duc d'Olivares","Les Fileuses"]
[8,"Vermeer","Le verre de vin","L'Atelier du Peintre","L'Astronome"]
[5,"Véronèse","Les Noces de Cana","Mars et Venus","La Bataille de Lépante"]
[2,"Vinci","Le Baptême du Christ","La Madonne à l'œillet","Dame avec l'Hermine"]
[]
[]
[]
[]
[]
[]
[]
[]
[]
[]
[]
["Classement par date",null,null,null,"Mouvements*","Premier mouvement","Second mouvement"]
[]
[1475,"Botticelli","L'adoration des Mages",null,{"$f":"Data!B3","v":"Sandro Botticelli"},{"$f":"Data!L3","v":"Renaissance"},{"$f":"Data!M3","v":"   "}]
[1475,"Vinci","Le Baptême du Christ",null,{"$f":"Data!B4","v":"Leonard_de Vinci"},{"$f":"Data!L4","v":"Renaissance"},{"$f":"Data!M4","v":"   "}]
[1480,"Vinci","La Madonne à l'œillet",null,{"$f":"Data!B5","v":" Michel-Ange "},{"$f":"Data!L5","v":"Renaissance"},{"$f":"Data!M5","v":"   "}]
[1482,"Botticelli","L'Allégorie de Printemps",null,{"$f":"Data!B6","v":"Sanzio Raphaël"},{"$f":"Data!L6","v":"Renaissance"},{"$f":"Data!M6","v":"   "}]
[1485,"Botticelli","La Naissance de Venus",null,{"$f":"Data!B7","v":"Paul Véronèse"},{"$f":"Data!L7","v":"Maniérisme"},{"$f":"Data!M7","v":"   "}]
[1490,"Vinci","Dame avec l'Hermine",null,{"$f":"Data!B8","v":" Rembrandt "},{"$f":"Data!L8","v":"Baroque"},{"$f":"Data!M8","v":"   "}]
[1504,"Raphaël","Les Trois Graces",null,{"$f":"Data!B9","v":"Diego Vélasquez"},{"$f":"Data!L9","v":"Baroque"},{"$f":"Data!M9","v":"   "}]
[1508,"Michel-Ange ","Le Prophète Jérémiah",null,{"$f":"Data!B10","v":"Johannes Vermeer"},{"$f":"Data!L10","v":"Baroque"},{"$f":"Data!M10","v":"   "}]
[1509,"Michel-Ange ","Les Sybilles de Delphe",null,{"$f":"Data!B11","v":"Jean-Honoré Fragonard"},{"$f":"Data!L11","v":"Rococo"},{"$f":"Data!M11","v":"   "}]
[1511,"Raphaël","Le Triomphe de Galatée",null,{"$f":"Data!B12","v":"Joshua Reynolds"},{"$f":"Data!L12","v":"Néo-classicisme anglais"},{"$f":"Data!M12","v":"   "}]
[1512,"Michel-Ange ","La Création d'Adam",null,{"$f":"Data!B13","v":"Eugène Delacroix"},{"$f":"Data!L13","v":"Romantisme"},{"$f":"Data!M13","v":"   "}]
[1520,"Raphaël","La Transfiguration",null,{"$f":"Data!B14","v":"Joseph Turner"},{"$f":"Data!L14","v":"Romantisme"},{"$f":"Data!M14","v":"   "}]
[1563,"Véronèse","Les Noces de Cana",null,{"$f":"Data!B15","v":"Gustave Courbet"},{"$f":"Data!L15","v":"Réalisme"},{"$f":"Data!M15","v":"Romantisme"}]
[1570,"Véronèse","Mars et Venus",null,{"$f":"Data!B16","v":"Paul Gauguin"},{"$f":"Data!L16","v":"Symboliste"},{"$f":"Data!M16","v":"Postimpressionnisme"}]
[1572,"Véronèse","La Bataille de Lépante",null,{"$f":"Data!B17","v":"Edouard Manet"},{"$f":"Data!L17","v":"Réalisme"},{"$f":"Data!M17","v":"Impressionnisme"}]
[1626,"Rembrandt ","La Partie de Musique",null,{"$f":"Data!B18","v":"Claude Monet"},{"$f":"Data!L18","v":"Impressionnisme"},{"$f":"Data!M18","v":"   "}]
[1629,"Vélasquez","Le Festin de Bacchus",null,{"$f":"Data!B19","v":"Edgar Degas"},{"$f":"Data!L19","v":"Impressionnisme"},{"$f":"Data!M19","v":"   "}]
[1632,"Rembrandt ","La Leçon d'Anatomie",null,{"$f":"Data!B20","v":"Auguste Renoir"},{"$f":"Data!L20","v":"Impressionnisme"},{"$f":"Data!M20","v":"Réalisme"}]
[1634,"Vélasquez","Comte-Duc d'Olivares",null,{"$f":"Data!B21","v":"Alfred Sisley"},{"$f":"Data!L21","v":"Impressionnisme"},{"$f":"Data!M21","v":"   "}]
[1654,"Rembrandt ","La Femme dans le Bain",null,{"$f":"Data!B22","v":"Paul Cézanne"},{"$f":"Data!L22","v":"Postimpressionnisme"},{"$f":"Data!M22","v":"Impressionnisme"}]
[1657,"Vélasquez","Les Fileuses",null,{"$f":"Data!B23","v":"Albert Anker"},{"$f":"Data!L23","v":"Réalisme"},{"$f":"Data!M23","v":"Impressionnisme"}]
[1660,"Vermeer","Le verre de vin",null,{"$f":"Data!B24","v":"Georges Seurat"},{"$f":"Data!L24","v":"Pointillisme"},{"$f":"Data!M24","v":"Postimpressionnisme"}]
[1666,"Vermeer","L'Atelier du Peintre",null,{"$f":"Data!B25","v":"Henri Toulouse-Lautrec"},{"$f":"Data!L25","v":"Art nouveau"},{"$f":"Data!M25","v":"Postimpressionnisme"}]
[1668,"Vermeer","L'Astronome",null,{"$f":"Data!B26","v":"Alphonse Mucha"},{"$f":"Data!L26","v":"Art nouveau"},{"$f":"Data!M26","v":"   "}]
[1767,"Fragonard","Hasard heureux de l'Escarpolette",null,{"$f":"Data!B27","v":"Ferdinand Hodler"},{"$f":"Data!L27","v":"Symbolisme"},{"$f":"Data!M27","v":"   "}]
[1775,"Fragonard","Les Baigneuses",null,{"$f":"Data!B28","v":"Vincent Van Gogh"},{"$f":"Data!L28","v":"Postimpressionnisme"},{"$f":"Data!M28","v":"Expressionnisme"}]
[1781,"Reynolds","The Ladies Waldegrave",null,{"$f":"Data!B29","v":"Amedeo Modigliani"},{"$f":"Data!L29","v":"Fauvisme"},{"$f":"Data!M29","v":"Expressionnisme"}]
[1785,"Fragonard","Fontaine de l'Amour",null,{"$f":"Data!B30","v":"Henri Matisse"},{"$f":"Data!L30","v":"Fauvisme"},{"$f":"Data!M30","v":"Postimpressionnisme"}]
[1787,"Reynolds","Lady Smith and Children",null,{"$f":"Data!B31","v":"Georges Braque"},{"$f":"Data!L31","v":"Cubisme"},{"$f":"Data!M31","v":"Fauvisme"}]
[1788,"Reynolds","Age de l'Innocence ",null,{"$f":"Data!B32","v":"Robert Delaunay"},{"$f":"Data!L32","v":"Cubisme"},{"$f":"Data!M32","v":"   "}]
[1824,"Delacroix","Le Massacre de Scio",null,{"$f":"Data!B33","v":"Pablo Picasso"},{"$f":"Data!L33","v":"Cubisme"},{"$f":"Data!M33","v":"Surréalisme"}]
[1830,"Delacroix","La Liberté guidant le Peuple",null,{"$f":"Data!B34","v":"Louis Toffoli"},{"$f":"Data!L34","v":"Constructivisme"},{"$f":"Data!M34","v":"Postcubisme"}]
[1839,"Turner","Dernier Voyage du Téméraire",null,{"$f":"Data!B35","v":"Paul Klee"},{"$f":"Data!L35","v":"Constructivisme"},{"$f":"Data!M35","v":"Expressionnisme"}]
[1840,"Turner","Le Négrier",null,{"$f":"Data!B36","v":"Joan Miro"},{"$f":"Data!L36","v":"Surréalisme"},{"$f":"Data!M36","v":"Fauvisme"}]
[1840,"Delacroix","Entrée des Croisés à Constantinople",null,{"$f":"Data!B37","v":"Salvador Dali"},{"$f":"Data!L37","v":"Surréalisme"},{"$f":"Data!M37","v":"Cubisme"}]
[1842,"Turner","Tempête de Neige en Mer",null,{"$f":"Data!B38","v":"Marc Chagall"},{"$f":"Data!L38","v":"Expressionnisme"},{"$f":"Data!M38","v":"Symbolisme "}]
[1853,"Courbet","Les Baigneuses",null,{"$f":"Data!B39","v":"René Magritte"},{"$f":"Data!L39","v":"Surréalisme"},{"$f":"Data!M39","v":"   "}]
[1862,"Manet","La Musique aux Tuilleries",null,{"$f":"Data!B40","v":"Leonor Fini"},{"$f":"Data!L40","v":"Surréalisme"},{"$f":"Data!M40","v":"   "}]
[1865,"Degas","Femme avec Chrysanthèmes",null,{"$f":"Data!B41","v":"Bernard Buffet"},{"$f":"Data!L41","v":"Expressionnisme"},{"$f":"Data!M41","v":"   "}]
[1865,"Anker","La Leçon d'Ecriture",null,{"$f":"Data!B42","v":"Pierre Soulages"},{"$f":"Data!L42","v":"Art informel"},{"$f":"Data!M42","v":"   "}]
[1865,"Courbet","La Source"]
[1867,"Monet","Femmes au Jardin",null,"*admis comme réponse dans le QUIZ"]
[1869,"Renoir","La Grenouillère"]
[1870,"Sisley","Vue du Canal St Martin"]
[1870,"Degas","Orchestre à la Maison de l'Opera"]
[1872,"Courbet","Plage de Normandie"]
[1873,"Cézanne","La Maison du Dr Gachet"]
[1873,"Monet","Le Déjeuner"]
[1873,"Degas","La Répétition"]
[1874,"Renoir","Le Pêcheur à la Ligne"]
[1876,"Sisley","L'Inondation à Port-Marty"]
[1877,"Sisley","Barges à Billancourt"]
[1886,"Seurat","Entrée du Port de Honfleur"]
[1879,"Manet","Chez le Père Lathuille"]
[1880,"Renoir","Le Déjeuner des Canotiers"]
[1881,"Gauguin","Etude de nu ou Suzanne"]
[1882,"Manet","Bar aux Folies Bergères "]
[1886,"Anker","Les Petits Eplucheurs"]
[1888,"Toulouse-Lautrec","Le Cirque de Fernando le Cavalier"]
[1888,"Van Gogh","Le Semeur au Soleil couchant"]
[1888,"Gauguin","Les Misérables"]
[1889,"Van Gogh","Nuit étoilée"]
[1889,"Seurat","La Tour Eiffel"]
[1890,"Toulouse-Lautrec","Bal au Moulin Rouge"]
[1890,"Van Gogh","Route avec Cyprès et Ciel"]
[1888,"Seurat","Rive de la Seine"]
[1891,"Gauguin","Les Parau Parau"]
[1894,"Cézanne","La Maison au Murs fendus"]
[1894,"Anker","Le Tailleur du Village"]
[1895,"Cézanne","Maison Maria et Château Noir"]
[1897,"Mucha","Daydream"]
[1897,"Mucha","Biscuits Lefevre"]
[1898,"Toulouse-Lautrec","Au Concert"]
[1898,"Mucha","La Danse"]
[1899,"Monet","Nymphéa"]
[1905,"Matisse","Fenêtre ouverte à Collioure"]
[1909,"Braque","Le Verre sur la Table"]
[1909,"Matisse","La Danse"]
[1909,"Braque","Petit Port en Normandie"]
[1910,"Hodler","Le Bûcheron"]
[1910,"Braque","Violon et Bougie"]
[1911,"Delaunay","La Tour Effel"]
[1911,"Chagall","Moi et le Village"]
[1912,"Hodler","Le Grand Muveran"]
[1912,"Delaunay","Les trois Graces"]
[1912,"Hodler","Les Dents du Midi"]
[1915,"Modigliani","La Mariée et son Mari"]
[1915,"Modigliani","Madame Pompadour"]
[1918,"Modigliani","Nu debout, Elvira"]
[1920,"Magritte","Chat dans un Chapeau"]
[1925,"Miro","Ballerine"]
[1927,"Klee","Voiliers élégants"]
[1928,"Klee","Château et Soleil"]
[1931,"Dali","Les Montres Molles"]
[1932,"Klee","Ad Parnassum - (La Lune)"]
[1936,"Magritte","La Clef des Champs"]
[1937,"Picasso","Femme au Beret rouge"]
[1938,"Miro","Oiseaux et Insectes"]
[1943,"Dali","Geopoliticus"]
[1946,"Matisse","Le Lanceur de Couteaux"]
[1946,"Dali","La Tentation de St-Antoine"]
[1949,"Miro","Femme et oiseau  au clair de lune"]
[1954,"Picasso","Jacqueline"]
[1955,"Picasso","Les Femmes d'Alger"]
[1957,"Chagall","Le Concert"]
[1957,"Delaunay","La fenêtre no 2"]
[1959,"Buffet","Le Grand Canal de Venise"]
[1962,"Chagall","La Baie des Anges"]
[1964,"Toffoli","Le Bivouac"]
[1964,"Toffoli","Les Mariachis"]
[1966,"Magritte","L'Heureux Donateur"]
[1970,"Toffoli","La Brodeuse"]
[1971,"Fini","Les Mutantes"]
[1974,"Fini","Couronnement bienheureuse Féline"]
[1975,"Fini","L'élève - Montmartre secret"]
[1978,"Buffet","Clown à la Cravate à pois"]
[1980,"Buffet","Roses et Orchidées "]
[1985,"Soulages","Polyptyque C"]
[1990,"Soulages","Noir et Bleu - 3 février"]
[2010,"Soulages"," \"18 mars\""]

{"sheet":"Diapo","index":2,"n_rows":42,"n_cols":6,"rows_kept":42,"cut":false,"hidden":false,"merged":[]}
[130,{"$f":" IF(E4=44,\"\",\"<----            \"&VLOOKUP(E4,chrono,E9)&\" cm            ---->\")","v":""}]
[{"$f":"VLOOKUP(E4,chrono,2)","v":"   "},null,{"$f":"VLOOKUP(E4,chrono,E8+1)&\"             \"&VLOOKUP(E4,chrono,E8)","v":"                   "}]
[null,{"$f":"IF(E4=0,\"\",VLOOKUP(E4,chrono,E8+2))","v":"   "},null,null,null,1]
[null,{"$f":"IF(E11=TRUE,D12,\"\")","v":""},null,"menu :",44,2]
[null,null,null,null,null,3]
[null,null,null,"Série : ",1,4]
[null,null,null,"décal V",{"$f":"IF(E6=1,0,IF(E6=2,7,14))","v":0},5]
[null,null,null,"decalo",{"$f":"IF(E6=1,3,IF(E6=2,6,9))","v":3},6]
[null,null,null,"decalarg",{"$f":"IF(E6=1,17,IF(E6=2,19,21))","v":17},7]
[null,null,null,"suivant",true,8]
[null,null,null,null,false,9]
[null,null,null,{"$f":"IF(VLOOKUP(E4,chrono,13)=\"   \",VLOOKUP(E4,chrono,12),VLOOKUP(E4,chrono,12)&\"    -    \"&VLOOKUP(E4,chrono,13))","v":"   "},null,10]
[null,null,null,null,null,11]
[null,null,null,null,null,12]
[null,null,null,null,null,13]
[null,null,null,null,null,14]
[null,null,null,null,null,15]
[null,null,null,null,null,16]
[null,null,null,null,null,17]
[null,null,null,null,null,18]
[null,null,null,null,null,19]
[null,null,null,null,null,20]
[null,null,null,null,null,21]
[null,null,null,null,null,22]
[null,null,null,null,null,23]
[null,null,null,null,null,24]
[null,null,null,null,null,25]
[null,null,null,null,null,26]
[null,null,null,null,null,27]
[null,null,null,null,null,28]
[null,null,null,null,null,29]
[null,null,null,null,null,30]
[null,null,null,null,null,31]
[null,null,null,null,null,32]
[null,null,null,null,null,33]
[null,null,null,null,null,34]
[null,null,null,null,null,35]
[null,null,null,null,null,36]
[null,null,null,null,null,37]
[null,null,null,null,null,38]
[null,null,null,null,null,39]
[null,null,null,null,null,40]

{"sheet":"Mouvements","index":3,"n_rows":66,"n_cols":28,"rows_kept":66,"cut":false,"hidden":false,"merged":[[0,0,0,2],[26,5,30,5],[47,1,47,4],[48,1,48,4],[49,1,49,4],[50,1,50,4],[51,1,51,4],[53,1,53,4],[54,1,54,4],[55,1,55,4],[52,1,52,4],[56,1,56,4],[57,1,57,4],[58,1,58,4],[64,1,64,4],[65,1,65,4],[63,1,63,4],[59,1,59,4],[60,1,60,4],[62,1,62,4],[61,1,61,4],[0,19,2,19],[0,20,2,20],[0,21,2,21],[0,22,2,22],[0,27,2,27],[0,23,2,23],[0,24,2,24],[0,25,2,25],[0,26,2,26],[0,9,2,9],[0,10,2,10],[0,11,2,11],[0,13,2,13],[0,18,2,18],[0,17,2,17],[0,12,2,12],[0,14,2,14],[0,15,2,15],[0,16,2,16]]}
["   Mouvements en peinture",null,null,null,null,null,null,null,null,"Renaissance","Maniérisme","Baroque","Rococo","Néo-Classicisme","Romantisme","Réalisme","Impressionnisme","Pointillisme","Postimpressionnisme","Cubisme","Fauvisme","Expressionnisme","Symbolisme","Postcubisme","Surréalisme","Art nouveau","Constructivisme","Art informel"]
[]
[]
[null,null,null,null,null,null,null,null,{"$f":"Data!B3","v":"Sandro Botticelli"},4]
[null,null,null,null,null,null,null,null,{"$f":"Data!B4","v":"Leonard_de Vinci"},2]
[null,null,null,null,null,null,null,null,{"$f":"Data!B5","v":" Michel-Ange "},1]
[1400,"Fin de la guerre de 100 ans","Gothique",null,null,null,null,null,{"$f":"Data!B6","v":"Sanzio Raphaël"},3]
[1425,null,null,"Renaissance",null,null,null,null,{"$f":"Data!B7","v":"Paul Véronèse"},null,1]
[1450,null,null,null,null,null,null,null,{"$f":"Data!B8","v":" Rembrandt "},null,null,1]
[1475,"1492 Découverte de l'Amérique",null,null,null,null,null,null,{"$f":"Data!B9","v":"Diego Vélasquez"},null,null,2]
[1500,null,null,null,null,null,null,null,{"$f":"Data!B10","v":"Johannes Vermeer"},null,null,3]
[1525,"1515-1547 François 1er","Maniérisme",null,null,null,null,null,{"$f":"Data!B11","v":"Jean-Honoré Fragonard"},null,null,null,1]
[1550,null,null,null,null,null,null,null,{"$f":"Data!B12","v":"Joshua Reynolds"},null,null,null,null,1]
[1575,null,null,null,null,null,null,null,{"$f":"Data!B13","v":"Eugène Delacroix"},null,null,null,null,null,1]
[1600,"1589-1610 Henri IV","Baroque",null,null,null,null,null,{"$f":"Data!B14","v":"Joseph Turner"},null,null,null,null,null,2]
[1625,null,null,null,null,null,null,null,{"$f":"Data!B15","v":"Gustave Courbet"},null,null,null,null,null,null,1]
[1650,null,null,null,null,null,null,null,{"$f":"Data!B16","v":"Paul Gauguin"},null,null,null,null,null,null,null,7,null,3,null,null,null,2]
[1675,"1643 - 1715 Louis XIV",null,null,null,null,null,null,{"$f":"Data!B17","v":"Edouard Manet"},null,null,null,null,null,null,2,2]
[1700,null,null,"Classicisme",null,null,null,null,{"$f":"Data!B18","v":"Claude Monet"},null,null,null,null,null,null,null,1]
[1725,null,null,null,"Rococo",null,null,null,{"$f":"Data!B19","v":"Edgar Degas"},null,null,null,null,null,null,null,3]
[1750,null,null,null,null,null,null,null,{"$f":"Data!B20","v":"Auguste Renoir"},null,null,null,null,null,null,3,2]
[1775,null,"Romantisme","Néo-classicisme",null,null,null,null,{"$f":"Data!B21","v":"Alfred Sisley"},null,null,null,null,null,null,null,8]
[1800,null,null,null,null,null,null,null,{"$f":"Data!B22","v":"Paul Cézanne"},null,null,null,null,null,null,null,4,null,2,4]
[1825,"1839 Invention de la photo",null,null,null,null,null,null,{"$f":"Data!B23","v":"Albert Anker"},null,null,null,null,null,null,null,6]
[1850,null,null,"Réalisme",null,null,null,null,{"$f":"Data!B24","v":"Georges Seurat"},null,null,null,null,null,null,null,null,1]
[1875,"1894 Eclairage électrique",null,"Impressionnisme",null,null,null,null,{"$f":"Data!B25","v":"Henri Toulouse-Lautrec"},null,null,null,null,null,null,null,null,null,6,null,null,null,null,null,null,2]
[1900,null,"Symbolisme",null,"Art nouveau","Modernisme","Expressionnisme",null,{"$f":"Data!B26","v":"Alphonse Mucha"},null,null,null,null,null,null,null,null,null,null,null,null,null,null,null,null,1]
[1925,null,"Surréalisme","Postimpressionnisme","Art déco.",null,"Cubisme ",null,{"$f":"Data!B27","v":"Ferdinand Hodler"},null,null,null,null,null,null,null,null,null,null,null,null,null,4]
[1950,"1960 Début informatique",null,null,"Art brut",null,"Fauvisme",null,{"$f":"Data!B28","v":"Vincent Van Gogh"},null,null,null,null,null,null,null,null,null,1,null,null,5]
[1975,null,null,null,"Art informel",null,"Hyperréalisme",null,{"$f":"Data!B29","v":"Amedeo Modigliani"},null,null,null,null,null,null,null,null,null,null,null,2,3]
[2000,null,null,null,"Pop Art",null,null,null,{"$f":"Data!B30","v":"Henri Matisse"},null,null,null,null,null,null,null,5,null,5,null,1]
[null,null,null,null,null,null,null,null,{"$f":"Data!B31","v":"Georges Braque"},null,null,null,null,null,null,null,null,null,null,2,4]
[null,null,null,null,null,null,null,null,{"$f":"Data!B32","v":"Robert Delaunay"},null,null,null,null,null,null,null,null,null,null,3]
[null,null,null,null,null,null,null,null,{"$f":"Data!B33","v":"Pablo Picasso"},null,null,null,null,null,null,null,null,null,null,1,null,6,null,null,2]
[null,null,null,null,null,null,null,null,{"$f":"Data!B34","v":"Louis Toffoli"},null,null,null,null,null,null,null,null,null,null,null,null,null,null,2,null,null,1]
[null,null,null,null,null,null,null,null,{"$f":"Data!B35","v":"Paul Klee"},null,null,null,null,null,null,null,null,null,null,5,null,1,null,null,6,null,2]
[null,null,null,null,null,null,null,null,{"$f":"Data!B36","v":"Joan Miro"},null,null,null,null,null,null,null,null,null,null,null,5,null,null,null,4]
[null,null,null,null,null,null,null,null,{"$f":"Data!B37","v":"Salvador Dali"},null,null,null,null,null,null,null,null,null,null,6,null,null,null,null,1]
[null,null,null,null,null,null,null,null,{"$f":"Data!B38","v":"Marc Chagall"},null,null,null,null,null,null,null,null,null,null,7,3,2,3,null,5]
[null,null,null,null,null,null,null,null,{"$f":"Data!B39","v":"René Magritte"},null,null,null,null,null,null,null,null,null,null,null,null,null,null,null,3]
[null,null,null,null,null,null,null,null,{"$f":"Data!B40","v":"Leonor Fini"},null,null,null,null,null,null,null,null,null,null,null,null,null,null,null,7]
[null,null,null,null,null,null,null,null,{"$f":"Data!B41","v":"Bernard Buffet"},null,null,null,null,null,null,null,null,null,null,null,null,4]
[null,null,null,null,null,null,null,null,{"$f":"Data!B42","v":"Pierre Soulages"},null,null,null,null,null,null,null,null,null,null,null,null,null,null,null,null,null,null,1]
[]
[null,null,null,null,null,null,null,null,"Ordre d'importance dans le mouvement :"]
["Dictionnaire des mouvements",null,null,null,null,null,null,null,"En rouge, mouvement principal, en vert deuxième mouvement"]
["http://www.histoiredelart.net/"]
[null,"La peinture de la Renaissance (mouvement de peinture qui s'est développé au XVIe siècle) se caractérise par toute une série de nouveautés telles que l'apparition du nu, de la notion de paysage, la perspective les effets de lumières et d'ombres notamment."]
[null,"Le maniérisme (mouvement de peinture qui s'est développé vers 1510) se trouve dans les poses à équilibre précaire, les formes allongées, un éclairage théâtral, les arrangements exagérés et les perspectives dissonantes."]
[null,"Le baroque (mouvement de peinture qui évolue entre 1600 et 1720) est l'art de la mise en scène par l’éblouissement des sens. Sur les peintures baroques, on observe l’exubérance des courbes, les jeux de regards, et les draperies, qui expriment la grandeur du pouvoir royal. "]
[null,"Le classicisme caractérise l'école de peinture française du XVIIe siècle. En réponse aux extravagances du baroque, le mouvement s'inspire des maîtres de la renaissance classique et devient un langage pictural au service de la monarchie absolue."]
[null,"Le néo-classicisme émerge vers 1750 dans l'Europe des Lumières et réagit aux extravagances du rococo par un retour au modèle antique et au beau idéal. Fantaisies et imagination sont abolies au profit de la sévérité, de la vertu et du patriotisme."]
[null,"Le rococo (courant de peinture qui se développe entre 1730 et 1789) met tous ses moyens au service de la joie, de la grâce et de la fantaisie, en opposition à l'art baroque.  Il disparut en 1789 au profit du néo-classicisme."]
[null,"Le romantisme (mouvement de peinture qui apparut à la fin du XVIIIe siècle) laisse une grande part à l’imaginaire, aux rêves, à la sensibilité et l’originalité des artistes."]
[null,"Le réalisme en peinture (courant de peinture du XIXe siècle) privilégie la représentation exacte, tels qu'ils sont, de la nature, des hommes et de la société."]
[null,"L'impressionnisme (courant de peinture du milieu du XIXe siècle) est né sous l'impulsion de jeunes artistes qui font du paysage leur thème principal et s’attachent à rendre compte de la moindre variation lumineuse grâce à la couleur."]
[null,"Les peintres du symbolisme (mouvement de peinture né en 1866) s’adressent à l’imaginaire, non au regard. Le sujet de prédilection est la femme qui incarne l’idéal de beauté dans tous les domaines."]
[null,"Le postimpressionnisme (mouvement entre 1885 et 1905) regroupe des courants artistiques qui, à partir de 1885, divergent de l'impressionnisme ou s'opposent à lui : néo-impressionnisme, synthétisme, symbolisme, nabis... Le post impressionnisme désigne donc une époque brève dans l'histoire de l'art, une vingtaine d'années, qui va voir un foisonnement d'idées et l'émergence de jeunes talents appelés à révolutionner la peinture. Cette période brouillonne, mais fertile finira par déboucher sur l'art abstrait."]
[null,"L'art nouveau (fin XIXe et début XXe siècle)  s'appuie sur l'esthétique des lignes courbes et se caractérise par l’emploi de lignes sinueuses, de courbes et de formes organiques."]
[null,"Le cubisme (mouvement de peinture qui s'est développé dans la première moitié du XXe siècle) est le fruit des peintres Pablo Picasso et Georges Braque qui ont introduit la fragmentation dans leurs oeuvres d'art."]
[null,"Le fauvisme (courant de peinture du début du XXe siècle) s’attache particulièrement au travail de la couleur. Les œuvres sont facilement reconnaissables par l’emploi sur de larges surfaces de couleurs aux teintes éclatantes."]
[null,"L’expressionnisme (mouvement de peinture qui apparut au début du XXe siècle) est la projection d’une vision personnelle qui tend à déformer la réalité pour inspirer au spectateur une réaction émotionnelle."]
[null,"Les caractéristiques du surréalisme (mouvement de la première moitié du XXe siècle) sont  principalement la surprise et la juxtaposition inattendue qui s'explique par une expression philosophique."]
[null,"Le constructivisme est une tendance artistique apparue en Russie vers 1913. Il se concentre sur la composition géométrique rigoureuse et par conséquent non figuratif. Le caractère constructiviste repose sur le fait de créer une composition au moyen d’éléments géométriques simples."]
[null,"La notion de modernisme (courant de peinture qui s'étend de 1907 aux années 1960) recouvre un ensemble de mouvements culturels ayant animé les sociétés occidentales de la fin du XIXe siècle et du XXe siècle, dans la peinture et dans d'autres domaines artistiques."]
[null,"Le dadaïsme ou Dada est un mouvement de peinture (qui s'est développé dans les années 1910 - 1920) qui tente d’abolir le concept du beau en mettant en avant un monde vide de sens. Tout peut devenir art si l’artiste le décide, utilisant la révolte ou la dérision. "]

{"sheet":"Data","index":4,"n_rows":97,"n_cols":38,"rows_kept":97,"cut":false,"hidden":true,"merged":[[46,13,46,21],[45,23,45,25],[46,22,46,25]]}
[1,"chrono - Matrice de Musée",null,4,5,6,7,8,9,10,11,12,13,14,15,16,17,18,19,20,21,22,23,24,25,26,27,28,29,30,31,32,33,34,35,36,37,38]
[0,"   ","   ","   ","   ","   ","   ","   ","   ","   ","   ","    ","   ","Mouvement",null,1,1,1,1,1,1]
[1,{"$f":"TRANSPOSE(Musée!B3:AO6)","v":"Sandro Botticelli"},1475,"L'adoration des Mages","Galerie des Offices - Florence",{"$f":"TRANSPOSE(Musée!B11:AO13)","v":1482},"L'Allégorie de Printemps","Galerie des Offices - Florence",{"$f":"TRANSPOSE(Musée!B18:AO22)","v":1485},"La Naissance de Venus","Galerie des Offices - Florence","Renaissance","   ",{"$f":"VLOOKUP(L3,$L$49:$M$68,2)","v":14},{"$f":"IF(M3=\"   \",19,VLOOKUP(M3,$L$49:$M$71,2))","v":19},111,134,203,314,172,276,"A,B,C",{"$f":"B3","v":"Sandro Botticelli"},{"$f":"RIGHT(W3,LEN(W3)-SEARCH(\" \",W3,1))","v":"Botticelli"},{"$f":"LEFT(W3,FIND(\" \",W3))","v":"Sandro "},{"$f":"X3&\"  \"&Y3","v":"Botticelli  Sandro "},{"$f":"VLOOKUP(N3,$I$49:$L$67,3)","v":"Ré, Ro"},null,{"$f":"UPPER(X3)","v":"BOTTICELLI"},1,{"$f":"AC3&\"  \"&Y3","v":"BOTTICELLI  Sandro "}]
[2,"Leonard_de Vinci",1475,"Le Baptême du Christ","Galerie des Offices - Florence",1480,"La Madonne à l'œillet","Alte Pinakothek de Munich,",1490,"Dame avec l'Hermine","Musée National de Cracovie","Renaissance","   ",14,{"$f":"IF(M4=\"   \",19,VLOOKUP(M4,$L$49:$M$71,2))","v":19},177,151,62,48,54,39,"V, W, X",{"$f":"B4","v":"Leonard_de Vinci"},{"$f":"RIGHT(W4,LEN(W4)-SEARCH(\" \",W4,1))","v":"Vinci"},{"$f":"LEFT(W4,FIND(\" \",W4))","v":"Leonard_de "},{"$f":"X4&\"  \"&Y4","v":"Vinci  Leonard_de "},"Ré, Ro",null,{"$f":"UPPER(X4)","v":"VINCI"},2,"VINCI  Leonard_de "]
[3," Michel-Ange ",1508,"Le Prophète Jérémiah","Chapelle Sixtine - Vatican",1509,"Les Sybilles de Delphe","Chapelle Sixtine - Vatican",1512,"La Création d'Adam","Chapelle Sixtine - Vatican","Renaissance","   ",14,19,395,380,395,380,230,480,"M, N, O"," Michel-Ange ","Michel-Ange "," ","Michel-Ange    ","Ré, Ro",null,"MICHEL-ANGE ",3,"MICHEL-ANGE    "]
[4,"Sanzio Raphaël",1504,"Les Trois Graces","Musée Condé à Chantilly",1511,"Le Triomphe de Galatée"," Villa Farnesina - Rome",1520,"La Transfiguration","Musée du Vatican","Renaissance","   ",14,19,18,18,295,224,405,278,"P, Q, R","Sanzio Raphaël","Raphaël","Sanzio ","Raphaël  Sanzio ","Ré, Ro",null,"RAPHAËL",4,"RAPHAËL  Sanzio "]
[5,"Paul Véronèse",1563,"Les Noces de Cana","Musée du Louvre",1570,"Mars et Venus","Metropolitan Museum of Art - New-York",1572,"La Bataille de Lépante","Gallerie dell'Accademia de Venise","Maniérisme","   ",9,19,677,990,206,161,169,137,"V, W, X","Paul Véronèse","Véronèse","Paul ","Véronèse  Paul ","M, N, P",null,"VÉRONÈSE",5,"VÉRONÈSE  Paul "]
[6," Rembrandt ",1626,"La Partie de Musique","Rijksmuseum - Amsterdam",1632,"La Leçon d'Anatomie","Mauritshuis - La Haye ",1654,"La Femme dans le Bain","National Gallery - Londres","Baroque","   ",3,19,64,48,170,217,67,47,"P, Q, R"," Rembrandt ","Rembrandt "," ","Rembrandt    ","A, B, C",null,"REMBRANDT ",6,"REMBRANDT    "]
[7,"Diego Vélasquez",1629,"Le Festin de Bacchus","Musée du Prado - Madrid",1634,"Comte-Duc d'Olivares","Collection José Luis Varez-Fisa -  Madrid",1657,"Les Fileuses","Musée du Prado - Madrid","Baroque","   ",3,19,165,225,313,239,167,252,"V, W, X","Diego Vélasquez","Vélasquez","Diego ","Vélasquez  Diego ","A, B, C",null,"VÉLASQUEZ",7,"VÉLASQUEZ  Diego "]
[8,"Johannes Vermeer",1660,"Le verre de vin","Gemäldegalerie - Berlin ",1666,"L'Atelier du Peintre","Kunsthistorisches Museum - Vienne",1668,"L'Astronome","Musée du Louvre","Baroque","   ",3,19,66,76,120,100,52,45,"V, W, X","Johannes Vermeer","Vermeer","Johannes ","Vermeer  Johannes ","A, B, C",null,"VERMEER",8,"VERMEER  Johannes "]
[9,"Jean-Honoré Fragonard",1767,"Hasard heureux de l'Escarpolette","Wallace Collection, Londres",1775,"Les Baigneuses","Musée du Louvre",1785,"Fontaine de l'Amour","Paul Getty Museum - Los Angeles","Rococo","   ",15,19,81,64,64,80,63,51,"D,F,G","Jean-Honoré Fragonard","Fragonard","Jean-Honoré ","Fragonard  Jean-Honoré ","Ré, Ro",null,"FRAGONARD",9,"FRAGONARD  Jean-Honoré "]
[10,"Joshua Reynolds",1781,"The Ladies Waldegrave","Scottish National Gallery - Edinburgh",1787,"Lady Smith and Children","Metropolitan Museum of Art - New-York",1788,"Age de l'Innocence ","Tate Britain - Londres","Néo-classicisme anglais","   ",10,19,144,168,141,112,77,64,"P, Q, R","Joshua Reynolds","Reynolds","Joshua ","Reynolds  Joshua ","M, N, P",null,"REYNOLDS",10,"REYNOLDS  Joshua "]
[11,"Eugène Delacroix",1824,"Le Massacre de Scio","Musée du Louvre",1830,"La Liberté guidant le Peuple","Musée du Louvre",1840,"Entrée des Croisés à Constantinople","Musée du Louvre","Romantisme","   ",16,19,419,354,260,325,410,498,"D,F,G","Eugène Delacroix","Delacroix","Eugène ","Delacroix  Eugène ","Ré, Ro",null,"DELACROIX",11,"DELACROIX  Eugène "]
[12,"Joseph Turner",1839,"Dernier Voyage du Téméraire","National Gallery - Londres",1840,"Le Négrier","Musée des beaux-arts de Boston",1842,"Tempête de Neige en Mer","National Gallery - Londres","Romantisme","   ",16,19,73,92,91,123,92,122,"S, T, U","Joseph Turner","Turner","Joseph ","Turner  Joseph ","Ré, Ro",null,"TURNER",12,"TURNER  Joseph "]
[13,"Gustave Courbet",1853,"Les Baigneuses","Musée Fabre - Montpellier",1865,"La Source","Musée d'Orsay",1872,"Plage de Normandie","National Gallery - Londres","Réalisme","Romantisme",13,16,227,193,128,97,62,90,"A,B,C","Gustave Courbet","Courbet","Gustave ","Courbet  Gustave ","Ré, Ro",null,"COURBET",13,"COURBET  Gustave "]
[14,"Paul Gauguin",1881,"Etude de nu ou Suzanne","Collection Ny Carlsberg - Copenhague",1888,"Les Misérables","Musée Van Gogh - Amsterdam",1891,"Les Parau Parau","L'Hermitage - St. Petersbourg","Symboliste","Postimpressionnisme",18,12,112,80,45,55,63,93,"D,F,G","Paul Gauguin","Gauguin","Paul ","Gauguin  Paul ","R, S, T",null,"GAUGUIN",14,"GAUGUIN  Paul "]
[15,"Edouard Manet",1862,"La Musique aux Tuilleries","National Gallery - Londres",1879,"Chez le Père Lathuille","Musée des Beaux-arts - Tournai",1882,"Bar aux Folies Bergères ","Courtauld Gallery - Londres","Réalisme","Impressionnisme",13,8,76,118,93,112,96,130,"M, N, O","Edouard Manet","Manet","Edouard ","Manet  Edouard ","Ré, Ro",null,"MANET",15,"MANET  Edouard "]
[16,"Claude Monet",1867,"Femmes au Jardin","Musée d'Orsay",1873,"Le Déjeuner","Musée d'Orsay",1899,"Nymphéa","Musée d'Orsay - Paris","Impressionnisme","   ",8,19,255,205,60,74,90,93,"M, N, O","Claude Monet","Monet","Claude ","Monet  Claude ","E, F, I",null,"MONET",16,"MONET  Claude "]
[17,"Edgar Degas",1865,"Femme avec Chrysanthèmes","Metropolitan Museum of Art - New-York",1870,"Orchestre à la Maison de l'Opera","Musée d'Orsay",1873,"La Répétition","Harward Art Museums - Boston","Impressionnisme","   ",8,19,74,93,56,46,41,55,"D,F,G","Edgar Degas","Degas","Edgar ","Degas  Edgar ","E, F, I",null,"DEGAS",17,"DEGAS  Edgar "]
[18,"Auguste Renoir",1869,"La Grenouillère","Nationalmuseum - Stockholm",1874,"Le Pêcheur à la Ligne","Collection privée",1880,"Le Déjeuner des Canotiers","The Phillips Collection - Washington","Impressionnisme","Réalisme",8,13,66,81,54,64,130,173,"P, Q, R","Auguste Renoir","Renoir","Auguste ","Renoir  Auguste ","E, F, I",null,"RENOIR",18,"RENOIR  Auguste "]
[19,"Alfred Sisley",1870,"Vue du Canal St Martin","Musée d'Orsay",1876,"L'Inondation à Port-Marty","Musée d'Orsay",1877,"Barges à Billancourt","L'Hermitage - St. Petersbourg","Impressionnisme","   ",8,19,50,65,60,81,47,57,"S, T, U","Alfred Sisley","Sisley","Alfred ","Sisley  Alfred ","E, F, I",null,"SISLEY",19,"SISLEY  Alfred "]
[20,"Paul Cézanne",1873,"La Maison du Dr Gachet","Musée d'Orsay",1894,"La Maison au Murs fendus","Collection Haupt - New York",1895,"Maison Maria et Château Noir","Musée d'art Kimbell - Fort Worth (USA)","Postimpressionnisme","Impressionnisme",12,8,46,38,65,54,65,81,"A,B,C","Paul Cézanne","Cézanne","Paul ","Cézanne  Paul ","M, N, P",null,"CÉZANNE",20,"CÉZANNE  Paul "]
[21,"Albert Anker",1865,"La Leçon d'Ecriture","Collection privée Suisse",1886,"Les Petits Eplucheurs","Collection privée Suisse",1894,"Le Tailleur du Village","Collection privée Suisse","Réalisme","Impressionnisme",13,8,46,68,70,52,82,65,"P, Q, R","Albert Anker","Anker","Albert ","Anker  Albert ","Ré, Ro",null,"ANKER",21,"ANKER  Albert "]
[22,"Georges Seurat",1886,"Entrée du Port de Honfleur","Barnes Fondation - Philadelphia",1888,"Rive de la Seine","Royal Museums - Bruxelles",1889,"La Tour Eiffel","Fine Arts Museums - San Francisco","Pointillisme","Postimpressionnisme",11,12,55,65,65,82,24,15,"S, T, U","Georges Seurat","Seurat","Georges ","Seurat  Georges ","M, N, P",null,"SEURAT",22,"SEURAT  Georges "]
[23,"Henri Toulouse-Lautrec",1888,"Le Cirque de Fernando le Cavalier","Art Insitute - Chicago",1890,"Bal au Moulin Rouge","Museum of Art - Philadelphie",1898,"Au Concert","National Gallery - Washington","Art nouveau","Postimpressionnisme",2,12,100,161,116,150,43,35,"S, T, U","Henri Toulouse-Lautrec","Toulouse-Lautrec","Henri ","Toulouse-Lautrec  Henri ","A, B, C",null,"TOULOUSE-LAUTREC",23,"TOULOUSE-LAUTREC  Henri "]
[24,"Alphonse Mucha",1897,"Daydream","Collection privée",1897,"Biscuits Lefevre","Collection privée",1898,"La Danse","Collection privée","Art nouveau","   ",2,19,73,55,62,44,60,38,"M, N, O","Alphonse Mucha","Mucha","Alphonse ","Mucha  Alphonse ","A, B, C",null,"MUCHA",24,"MUCHA  Alphonse "]
[25,"Ferdinand Hodler",1910,"Le Bûcheron","Collection d’art de la Mobilière",1912,"Le Grand Muveran","Kunstmuseum -  Winterthur",1912,"Les Dents du Midi","Kunstmuseum - Basel","Symbolisme","   ",18,19,130,100,70,94,66,81,"H, J, K","Ferdinand Hodler","Hodler","Ferdinand ","Hodler  Ferdinand ","R, S, T",null,"HODLER",25,"HODLER  Ferdinand "]
[26,"Vincent Van Gogh",1888,"Le Semeur au Soleil couchant","Collection Emil Buehrle - Zurich",1889,"Nuit étoilée","Museum of Modern Art - New York",1890,"Route avec Cyprès et Ciel","Kröller-Müller Museum - Otterlo (Pays-Bas)","Postimpressionnisme","Expressionnisme",12,6,64,81,74,92,92,73,"V, W, X","Vincent Van Gogh","Van Gogh","Vincent ","Van Gogh  Vincent ","M, N, P",null,"VAN GOGH",26,"VAN GOGH  Vincent "]
[27,"Amedeo Modigliani",1915,"La Mariée et son Mari","Museum of Modern Art - New York",1915,"Madame Pompadour","Art Institute - Chicago",1918,"Nu debout, Elvira","Musee BeauxArts - Berne","Fauvisme","Expressionnisme",7,6,52,46,60,49,92,60,"M, N, O","Amedeo Modigliani","Modigliani","Amedeo ","Modigliani  Amedeo ","E, F, I",null,"MODIGLIANI",27,"MODIGLIANI  Amedeo "]
[28,"Henri Matisse",1905,"Fenêtre ouverte à Collioure","Musée du Luxembourg",1909,"La Danse","L'Hermitage - St. Petersbourg",1946,"Le Lanceur de Couteaux","Menil Collection - Houston","Fauvisme","Postimpressionnisme",7,12,55,46,260,391,44,68,"M, N, O","Henri Matisse","Matisse","Henri ","Matisse  Henri ","E, F, I",null,"MATISSE",28,"MATISSE  Henri "]
[29,"Georges Braque",1909,"Le Verre sur la Table","Collection privée",1909,"Petit Port en Normandie","Art Insitute - Chicago",1910,"Violon et Bougie","Musée d'Art moderne - San Francisco","Cubisme","Fauvisme",5,7,34,38,81,81,61,50,"A,B,C","Georges Braque","Braque","Georges ","Braque  Georges ","A, B, C",null,"BRAQUE",29,"BRAQUE  Georges "]
[30,"Robert Delaunay",1911,"La Tour Effel","Musée d'art moderne de la ville de Paris",1912,"Les trois Graces","Collection privée",1957,"La fenêtre no 2","Goldmark Gallery -  Uppingham (UK)","Cubisme","   ",5,19,202,139,207,173,32,25,"D,F,G","Robert Delaunay","Delaunay","Robert ","Delaunay  Robert ","A, B, C",null,"DELAUNAY",30,"DELAUNAY  Robert "]
[31,"Pablo Picasso",1937,"Femme au Beret rouge","Collection privée",1954,"Jacqueline","Musée Picasso - Barcelone",1955,"Les Femmes d'Alger","En prêt au Musée du Louvre","Cubisme","Surréalisme",5,17,80,60,100,81,114,147,"P, Q, R","Pablo Picasso","Picasso","Pablo ","Picasso  Pablo ","A, B, C",null,"PICASSO",31,"PICASSO  Pablo "]
[32,"Louis Toffoli",1964,"Le Bivouac","Collection privée",1964,"Les Mariachis","Collection privée",1970,"La Brodeuse","Collection privée","Constructivisme","Postcubisme",4,11,108,159,90,130,72,53,"S, T, U","Louis Toffoli","Toffoli","Louis ","Toffoli  Louis ","A, B, C",null,"TOFFOLI",32,"TOFFOLI  Louis "]
[33,"Paul Klee",1927,"Voiliers élégants","Zentrum Paul Klee - Berne",1928,"Château et Soleil","Collection privée",1932,"Ad Parnassum - (La Lune)","Musee BeauxArts - Berne","Constructivisme","Expressionnisme",4,6,23,31,49,61,100,126,"H, J, K","Paul Klee","Klee","Paul ","Klee  Paul ","A, B, C",null,"KLEE",33,"KLEE  Paul "]
[34,"Joan Miro",1925,"Ballerine","Collection privée",1938,"Oiseaux et Insectes","Albertina Museum - Vienne ",1949,"Femme et oiseau  au clair de lune","Collection privée","Surréalisme","Fauvisme",17,7,50,40,114,88,58,47,"M, N, O","Joan Miro","Miro","Joan ","Miro  Joan ","R, S, T",null,"MIRO",34,"MIRO  Joan "]
[35,"Salvador Dali",1931,"Les Montres Molles","Museum of Modern Art - New York",1943,"Geopoliticus","Salvador Dali Museum - Saint Petersburg",1946,"La Tentation de St-Antoine","Musées Royaux des Beaux-Arts de Belgique","Surréalisme","Cubisme",17,5,24,33,45,52,90,120,"D,F,G","Salvador Dali","Dali","Salvador ","Dali  Salvador ","R, S, T",null,"DALI",35,"DALI  Salvador "]
[36,"Marc Chagall",1911,"Moi et le Village","Museum of Modern Art - New York",1957,"Le Concert","Collection privée",1962,"La Baie des Anges","Musée National Marc Chagall - Nice","Expressionnisme","Symbolisme ",6,18,192,151,140,240,76,56,"A,B,C","Marc Chagall","Chagall","Marc ","Chagall  Marc ","E, F, I",null,"CHAGALL",36,"CHAGALL  Marc "]
[37,"René Magritte",1920,"Chat dans un Chapeau","Collection privée",1936,"La Clef des Champs","Nacional Thyssen-Bornemisza - Madrid",1966,"L'Heureux Donateur","Musée communal des beaux-arts d'Ixelles (B)","Surréalisme","   ",17,19,50,50,80,60,56,46,"M, N, O","René Magritte","Magritte","René ","Magritte  René ","R, S, T",null,"MAGRITTE",37,"MAGRITTE  René "]
[38,"Leonor Fini",1971,"Les Mutantes","Collection privée - Belgique",1974,"Le Sphinx ailé","Collection privée - Luxembourg",1975,"L'élève - Montmartre secret","Collection privée","Surréalisme","   ",17,19,56,76,76,57,44,43,"D,F,G","Leonor Fini","Fini","Leonor ","Fini  Leonor ","R, S, T",null,"FINI",38,"FINI  Leonor "]
[39,"Bernard Buffet",1959,"Le Grand Canal de Venise","Sérigraphie sur tapisserie 200 tirages",1978,"Clown à la Cravate à pois","ArtNet",1980,"Roses et Orchidées ","Collection privée","Expressionnisme","   ",6,19,88,118,65,50,65,50,"A,B,C","Bernard Buffet","Buffet","Bernard ","Buffet  Bernard ","E, F, I",null,"BUFFET",39,"BUFFET  Bernard "]
[40,"Pierre Soulages",1985,"Polyptyque C","Musée Soulages - Rodez",1990,"Noir et Bleu - 3 février","Musée National d'Art - Luxembourg",2010," \"18 mars\"","Collection privée","Art informel","   ",1,19,324,362,81,60,130,81,"S, T, U","Pierre Soulages","Soulages","Pierre ","Soulages  Pierre ","A, B, C",null,"SOULAGES",40,"SOULAGES  Pierre "]
[41,null,null,null,null,null,null,null,null,null,null,null,null,null,null,1,1,1,1,1,1,"\"\"",0]
[42,null,null,null,null,null,null,null,null,null,null,null,null,null,null,1,1,1,1,1,1,"\"\""]
[43,null,null,null,null,null,null,null,null,null,null,null,null,null,null,"hauteur","largeur","hauteur","largeur","hauteur","largeur"]
[44,"   ","   ","   ","   ","   ","   ","   ","   ","   ","   ","   ","   ","   ","   ","   ","   ","   ","   ","   ","   ","   ","\" = B3 \"","Concanétation"]
[45,null,null,null,null,null,null,null,null,null,null,null,null,"Partie manuelle",null,null,null,null,null,null,null,null,"Zone automatique"]
[null,"alpha - Tableau manuel",null,"Correspondance liste Musée et liste Menu déroulant",null,null,null,null,"Liste mouv","Liste pour Menu",null,"Liste pour recherche"]
[0,"  ",null,null,"\"\"",null,null,null,0,null,null,null,0]
[1,{"$f":"F50","v":21},{"$f":"\"      A      \"","v":"      A      "},{"$f":"C50&G50","v":"      A      ANKER  Albert "},"Anker",21,"ANKER  Albert ",null,1,"     Art informel","A, B, C","Art informel",1]
[2,{"$f":"F51","v":1},{"$f":"\"      B      \"","v":"      B      "},{"$f":"C51&G51","v":"      B      BOTTICELLI  Sandro "},"Botticelli",1,"BOTTICELLI  Sandro ",null,2,"     Art nouveau","A, B, C","Art nouveau",2]
[3,29,{"$f":"\"              \"","v":"              "},"              BRAQUE  Georges ","Braque",29,"BRAQUE  Georges ",null,3,"     Baroque","A, B, C","Baroque",3]
[4,39,{"$f":"\"              \"","v":"              "},"              BUFFET  Bernard ","Buffet",39,"BUFFET  Bernard ",null,4,"     Constructivisme","A, B, C","Constructivisme",4]
[5,20,{"$f":"\"      C     \"","v":"      C     "},"      C     CÉZANNE  Paul ","Cézanne",20,"CÉZANNE  Paul ",null,5,"     Cubisme","A, B, C","Cubisme",5]
[6,36,{"$f":"\"              \"","v":"              "},"              CHAGALL  Marc ","Chagall",36,"CHAGALL  Marc ",null,6,"     Expressionnisme","E, F, I","Expressionnisme",6]
[7,13,{"$f":"\"              \"","v":"              "},"              COURBET  Gustave ","Courbet",13,"COURBET  Gustave ",null,7,"     Fauvisme","E, F, I","Fauvisme",7]
[8,35,{"$f":"\"      D     \"","v":"      D     "},"      D     DALI  Salvador ","Dali",35,"DALI  Salvador ",null,8,"     Impressionnisme","E, F, I","Impressionnisme",8]
[9,17,{"$f":"\"              \"","v":"              "},"              DEGAS  Edgar ","Degas",17,"DEGAS  Edgar ",null,9,"     Maniérisme","M, N, P","Maniérisme",9]
[10,11,{"$f":"\"              \"","v":"              "},"              DELACROIX  Eugène ","Delacroix",11,"DELACROIX  Eugène ",null,10,"     Néo-classicisme anglais","M, N, P","Néo-classicisme anglais",10]
[11,30,{"$f":"\"              \"","v":"              "},"              DELAUNAY  Robert ","Delaunay",30,"DELAUNAY  Robert ",null,11,"     Pointillisme","M, N, P","Pointillisme",11]
[12,38,{"$f":"\"      F      \"","v":"      F      "},"      F      FINI  Leonor ","Fini",38,"FINI  Leonor ",null,12,"     Postimpressionnisme","M, N, P","Postimpressionnisme",12]
[13,9,{"$f":"\"              \"","v":"              "},"              FRAGONARD  Jean-Honoré ","Fragonard",9,"FRAGONARD  Jean-Honoré ",null,13,"     Réalisme","Ré, Ro","Réalisme",13]
[14,14,{"$f":"\"      G     \"","v":"      G     "},"      G     GAUGUIN  Paul ","Gauguin",14,"GAUGUIN  Paul ",null,14,"     Renaissance","Ré, Ro","Renaissance",14]
[15,25,{"$f":"\"      H     \"","v":"      H     "},"      H     HODLER  Ferdinand ","Hodler",25,"HODLER  Ferdinand ",null,15,"     Rococo","Ré, Ro","Rococo",15]
[16,33,{"$f":"\"      K      \"","v":"      K      "},"      K      KLEE  Paul ","Klee",33,"KLEE  Paul ",null,16,"     Romantisme","Ré, Ro","Romantisme",16]
[17,37,{"$f":"\"     M     \"","v":"     M     "},"     M     MAGRITTE  René ","Magritte",37,"MAGRITTE  René ",null,17,"     Surréalisme","R, S, T","Surréalisme",17]
[18,15,{"$f":"\"              \"","v":"              "},"              MANET  Edouard ","Manet",15,"MANET  Edouard ",null,18,"     Symbolisme","R, S, T","Symbolisme",18]
[19,28,{"$f":"\"              \"","v":"              "},"              MATISSE  Henri ","Matisse",28,"MATISSE  Henri ",null,19,null,null,null,19]
[20,3,"              ","              MICHEL-ANGE    ","Michel_Ange",3,"MICHEL-ANGE    "]
[21,34,"              ","              MIRO  Joan ","Miro",34,"MIRO  Joan "]
[22,27,"              ","              MODIGLIANI  Amedeo ","Modigliani",27,"MODIGLIANI  Amedeo "]
[23,16,"              ","              MONET  Claude ","Monet",16,"MONET  Claude ",null,null," "]
[24,24,"              ","              MUCHA  Alphonse ","Mucha",24,"MUCHA  Alphonse "]
[25,31,{"$f":"\"      P      \"","v":"      P      "},"      P      PICASSO  Pablo ","Picasso",31,"PICASSO  Pablo "]
[26,4,{"$f":"\"      R      \"","v":"      R      "},"      R      RAPHAËL  Sanzio ","Raphaël",4,"RAPHAËL  Sanzio "]
[27,6,{"$f":"\"              \"","v":"              "},"              REMBRANDT    ","Rembrandt",6,"REMBRANDT    ",null,{"$f":"\"      A      \"","v":"      A      "},{"$f":"I76&J50","v":"      A           Art informel"}]
[28,18,"              ","              RENOIR  Auguste ","Renoir",18,"RENOIR  Auguste ",null,{"$f":"\"              \"","v":"              "},{"$f":"I77&J51","v":"                   Art nouveau"}]
[29,10,"              ","              REYNOLDS  Joshua ","Reynolds",10,"REYNOLDS  Joshua ",null,{"$f":"\"      B      \"","v":"      B      "},"      B           Baroque"]
[30,22,{"$f":"\"      S      \"","v":"      S      "},"      S      SEURAT  Georges ","Seura",22,"SEURAT  Georges ",null,{"$f":"\"      C      \"","v":"      C      "},"      C           Constructivisme"]
[31,19,"              ","              SISLEY  Alfred ","Sisley",19,"SISLEY  Alfred ",null,{"$f":"\"              \"","v":"              "},"                   Cubisme"]
[32,40,"              ","              SOULAGES  Pierre ","Soulages",40,"SOULAGES  Pierre ",null,{"$f":"\"      E      \"","v":"      E      "},"      E           Expressionnisme"]
[33,32,{"$f":"\"      T      \"","v":"      T      "},"      T      TOFFOLI  Louis ","Toffoli",32,"TOFFOLI  Louis ",null,{"$f":"\"      F      \"","v":"      F      "},"      F           Fauvisme"]
[34,23,"              ","              TOULOUSE-LAUTREC  Henri ","Toulouse",23,"TOULOUSE-LAUTREC  Henri ",null,{"$f":"\"      I       \"","v":"      I       "},"      I            Impressionnisme"]
[35,12,"              ","              TURNER  Joseph ","Turner",12,"TURNER  Joseph ",null,{"$f":"\"     M      \"","v":"     M      "},"     M           Maniérisme"]
[36,26,{"$f":"\"      V     \"","v":"      V     "},"      V     VAN GOGH  Vincent ","Van Gogh",26,"VAN GOGH  Vincent ",null,{"$f":"\"     N      \"","v":"     N      "},"     N           Néo-classicisme anglais"]
[37,7,{"$f":"\"              \"","v":"              "},"              VÉLASQUEZ  Diego ","Velazquez",7,"VÉLASQUEZ  Diego ",null,{"$f":"\"      P      \"","v":"      P      "},"      P           Pointillisme"]
[38,8,"              ","              VERMEER  Johannes ","Vermeer",8,"VERMEER  Johannes ",null,"              ","                   Postimpressionnisme"]
[39,5,"              ","              VÉRONÈSE  Paul ","Véronèse",5,"VÉRONÈSE  Paul ",null,{"$f":"\"      R      \"","v":"      R      "},"      R           Réalisme"]
[40,2,"              ","              VINCI  Leonard_de ","Vinci",2,"VINCI  Leonard_de ",null,"              ","                   Renaissance"]
[41,41,"              ",null,null,null,null,null,"              ","                   Rococo"]
[null,null,null,null,null,null,null,null,"              ","                   Romantisme"]
[null,null,null,null,null,null,null,null,{"$f":"\"      S      \"","v":"      S      "},"      S           Surréalisme"]
[null,null,null,null,null,null,null,null,"              ","                   Symbolisme"]
[null,null,null,null,null,null,null,null,{"$f":"\"              \"","v":"              "}]
[null,null,null,null,null,null,null,null,"              "]
[null,null,null,null,null,null,null,null,"              "]
[null,null,null,null,null,null,null,null,"              "]